Publisher Label,Publisher URI,"Supplier","Net Amount (£)","Organisational Unit","Merchant Category Code","Purpose","Payment Date"
"Wolverhampton City Council","http://opendatacommunities.org/id/metropolitan-district-council/wolverhampton","Trainline","51.25","Youth Offending Team","4112","Public Transport","31/03/2017"
"Wolverhampton City Council","http://opendatacommunities.org/id/metropolitan-district-council/wolverhampton","BOOTS - 6564","21.97","Cemeteries","5912","Toilet Requisites","31/03/2017"
"Wolverhampton City Council","http://opendatacommunities.org/id/metropolitan-district-council/wolverhampton","HOME BARGAINS","34.32","Cemeteries","5251","Equipment - Purchase","31/03/2017"
"Wolverhampton City Council","http://opendatacommunities.org/id/metropolitan-district-council/wolverhampton","E00783400000000","10.00","EIP Locality 1","6011","Financial Assistance In Exceptional Circ","31/03/2017"
"Wolverhampton City Council","http://opendatacommunities.org/id/metropolitan-district-council/wolverhampton","OXLEY STATIONERS &","35.00","Community Enablement","5943","Printing","31/03/2017"
"Wolverhampton City Council","http://opendatacommunities.org/id/metropolitan-district-council/wolverhampton","B&M RETAIL LTD","51.59","LAC Transitions Team","5310","Client Allowances","31/03/2017"
"Wolverhampton City Council","http://opendatacommunities.org/id/metropolitan-district-council/wolverhampton","TESCO DIRECT","115.83","LAC Transitions Team","5999","Client Allowances","31/03/2017"
"Wolverhampton City Council","http://opendatacommunities.org/id/metropolitan-district-council/wolverhampton","ASDA GEORGE COM LEEDS","64.00","LAC Transitions Team","5411","Client Allowances","31/03/2017"
"Wolverhampton City Council","http://opendatacommunities.org/id/metropolitan-district-council/wolverhampton","ARGOS LTD","109.95","LAC Transitions Team","5310","Client Allowances","31/03/2017"
"Wolverhampton City Council","http://opendatacommunities.org/id/metropolitan-district-council/wolverhampton","Virgin Trains","37.40","LAC Team","4112","Public Transport","31/03/2017"
"Wolverhampton City Council","http://opendatacommunities.org/id/metropolitan-district-council/wolverhampton","Virgin Trains","34.00","Adoption and Residence Team & Allowances","4112","Public Transport","31/03/2017"
"Wolverhampton City Council","http://opendatacommunities.org/id/metropolitan-district-council/wolverhampton","JANITORIAL DIRECT LTD","50.99","Central Baths","7349","Contract Cleaning","31/03/2017"
"Wolverhampton City Council","http://opendatacommunities.org/id/metropolitan-district-council/wolverhampton","NIKONUKLTD","239.42","Communications & Marketing - General","5946","Equipment - Purchase","31/03/2017"
"Wolverhampton City Council","http://opendatacommunities.org/id/metropolitan-district-council/wolverhampton","FACEBK DDULSCAAR2","37.44","Public Health - Children 5 - 19","7311","Marketing \ Non-staff advertising","31/03/2017"
"Wolverhampton City Council","http://opendatacommunities.org/id/metropolitan-district-council/wolverhampton","FACEBK ADULSCAAR2","462.71","Communications & Marketing - General","7311","Marketing \ Non-staff advertising","31/03/2017"
"Wolverhampton City Council","http://opendatacommunities.org/id/metropolitan-district-council/wolverhampton","WEST COAST TRAINS","5.50","Art Gallery","4112","Public Transport","31/03/2017"
"Wolverhampton City Council","http://opendatacommunities.org/id/metropolitan-district-council/wolverhampton","WEST MIDLAND METRO","3.42","Headstart Phase 3","4131","Public Transport","31/03/2017"
"Wolverhampton City Council","http://opendatacommunities.org/id/metropolitan-district-council/wolverhampton","NOMAD WEST COAST L","4.17","Headstart Phase 3","4816","Computing - Purchase of Software","31/03/2017"
"Wolverhampton City Council","http://opendatacommunities.org/id/metropolitan-district-council/wolverhampton","Virgin Trains","18.80","Private Sector Housing","4112","Public Transport","31/03/2017"
"Wolverhampton City Council","http://opendatacommunities.org/id/metropolitan-district-council/wolverhampton","WWW.STAPLES.CO.UK","-18.32","Towers Outdoor Education Centre","5943","Equipment - Purchase","31/03/2017"
"Wolverhampton City Council","http://opendatacommunities.org/id/metropolitan-district-council/wolverhampton","HERON FOODS LTD","15.46","Ernest Bold Court","5499","Catering","31/03/2017"
"Wolverhampton City Council","http://opendatacommunities.org/id/metropolitan-district-council/wolverhampton","ARGOS RETAIL GROUP","291.66","Civic Halls Non Direct Management A/C","5310","Equipment - Purchase","31/03/2017"
"Wolverhampton City Council","http://opendatacommunities.org/id/metropolitan-district-council/wolverhampton","Trainline","68.03","CIN/CP S17 SW Unit - Area 7","4112","Public Transport","31/03/2017"
"Wolverhampton City Council","http://opendatacommunities.org/id/metropolitan-district-council/wolverhampton","EVENTBRITE","-179.95","Central Training","7399","Training Expenses","31/03/2017"
"Wolverhampton City Council","http://opendatacommunities.org/id/metropolitan-district-council/wolverhampton","WWW.CHARTEREDFORESTERS","195.00","Central Training","8699","Training Expenses","31/03/2017"
"Wolverhampton City Council","http://opendatacommunities.org/id/metropolitan-district-council/wolverhampton","TIMPSON LTD","7.50","Mayoral Expenses","7251","Equipment - Purchase","31/03/2017"
"Wolverhampton City Council","http://opendatacommunities.org/id/metropolitan-district-council/wolverhampton","IKEA LIMITED","137.50","EIP Locality 8","5712","Equipment - Purchase","31/03/2017"
"Wolverhampton City Council","http://opendatacommunities.org/id/metropolitan-district-council/wolverhampton","CURRYS S/S","1200.00","Mayoral Expenses","5732","Gratuities","31/03/2017"
"Wolverhampton City Council","http://opendatacommunities.org/id/metropolitan-district-council/wolverhampton","T.A. HENN & SON LTD","300.00","Mayoral Expenses","5944","Equipment - Purchase","31/03/2017"
"Wolverhampton City Council","http://opendatacommunities.org/id/metropolitan-district-council/wolverhampton","J J RUDELL & CO LT","150.00","Mayoral Expenses","5944","Gratuities","31/03/2017"
"Wolverhampton City Council","http://opendatacommunities.org/id/metropolitan-district-council/wolverhampton","REGISTRARS OFFICE","20.00","CIN/CP S17 SW Unit - Area 1","8299","Printing","31/03/2017"
"Wolverhampton City Council","http://opendatacommunities.org/id/metropolitan-district-council/wolverhampton","CT WOLVERHAMPTON","60.00","LAC Transitions Team","8398","Client Allowances","31/03/2017"
"Wolverhampton City Council","http://opendatacommunities.org/id/metropolitan-district-council/wolverhampton","ASDA SUPERSTORE","11.08","EIP Locality 5","5411","Provisions (Not for resale)","31/03/2017"
"Wolverhampton City Council","http://opendatacommunities.org/id/metropolitan-district-council/wolverhampton","Trainline","236.23","Delivery & OCE Development","4112","Public Transport","31/03/2017"
"Wolverhampton City Council","http://opendatacommunities.org/id/metropolitan-district-council/wolverhampton","TESCO STORES 2720","6.04","Headstart Phase 3","5411","Subsistence","30/03/2017"
"Wolverhampton City Council","http://opendatacommunities.org/id/metropolitan-district-council/wolverhampton","SCREWFIX DIRECT","39.99","Car Parks Operational Staff","5211","Clothing / Uniforms","30/03/2017"
"Wolverhampton City Council","http://opendatacommunities.org/id/metropolitan-district-council/wolverhampton","SAINSBURYS (2340)","17.35","Civic Centre Catering","5411","Provisions (Not for resale)","30/03/2017"
"Wolverhampton City Council","http://opendatacommunities.org/id/metropolitan-district-council/wolverhampton","HMCOURTS-SERVICE.G","20.00","Mental Health Assessment & Care Mgmt","9222","Services - Fees and Charges","30/03/2017"
"Wolverhampton City Council","http://opendatacommunities.org/id/metropolitan-district-council/wolverhampton","BHAMCOUNCILPHONE","100.00","School Improvement","9399","Services - Fees and Charges","30/03/2017"
"Wolverhampton City Council","http://opendatacommunities.org/id/metropolitan-district-council/wolverhampton","Amazon UK Marketplace","71.43","Revenues","5942","Books","30/03/2017"
"Wolverhampton City Council","http://opendatacommunities.org/id/metropolitan-district-council/wolverhampton","CT WOLVERHAMPTON","120.00","LAC Transitions Team","8398","Client Allowances","30/03/2017"
"Wolverhampton City Council","http://opendatacommunities.org/id/metropolitan-district-council/wolverhampton","B&M RETAIL","41.62","LAC Transitions Team","5310","Client Allowances","30/03/2017"
"Wolverhampton City Council","http://opendatacommunities.org/id/metropolitan-district-council/wolverhampton","Trainline","187.17","Strategic Asset Management Team","4112","Public Transport","30/03/2017"
"Wolverhampton City Council","http://opendatacommunities.org/id/metropolitan-district-council/wolverhampton","ARGOS RETAIL GROUP","41.66","Headstart Phase 3","5310","Furniture","30/03/2017"
"Wolverhampton City Council","http://opendatacommunities.org/id/metropolitan-district-council/wolverhampton","ARGOS RETAIL GROUP","99.07","Headstart Phase 3","5310","Furniture","30/03/2017"
"Wolverhampton City Council","http://opendatacommunities.org/id/metropolitan-district-council/wolverhampton","POST OFFICE COUNTER","31.80","Headstart Phase 3","9402","Comms - Postage","30/03/2017"
"Wolverhampton City Council","http://opendatacommunities.org/id/metropolitan-district-council/wolverhampton","Amazon UK Marketplace","209.84","Headstart Phase 3","5942","Computing - Consumables","30/03/2017"
"Wolverhampton City Council","http://opendatacommunities.org/id/metropolitan-district-council/wolverhampton","MAPLIN WOLVERHAMPT WV2","37.48","Strategic ICTS (ICT Serv Budget)","4812","Computing - Consumables","30/03/2017"
"Wolverhampton City Council","http://opendatacommunities.org/id/metropolitan-district-council/wolverhampton","AMAZON UK RETAIL AMAZO","46.66","Strategic ICTS (ICT Serv Budget)","5999","Computing - Purchase of Software","30/03/2017"
"Wolverhampton City Council","http://opendatacommunities.org/id/metropolitan-district-council/wolverhampton","Amazon UK Marketplace","12.98","Strategic ICTS (ICT Serv Budget)","5942","Computing - Purchase of Hardware","30/03/2017"
"Wolverhampton City Council","http://opendatacommunities.org/id/metropolitan-district-council/wolverhampton","DON RUFFLES LTD","211.95","Central Baths","5943","Equipment - Purchase","30/03/2017"
"Wolverhampton City Council","http://opendatacommunities.org/id/metropolitan-district-council/wolverhampton","NOMAD WEST COAST L","4.17","Headstart Phase 3","4816","Comms - Telephone Call charges","30/03/2017"
"Wolverhampton City Council","http://opendatacommunities.org/id/metropolitan-district-council/wolverhampton","BRITANNIA","30.00","CIN/CP S17 SW Unit - Area 2","7011","Services - Supplies & Services to users","30/03/2017"
"Wolverhampton City Council","http://opendatacommunities.org/id/metropolitan-district-council/wolverhampton","Trainline","83.84","CIN/CP S17 SW Unit - Area 2","4112","Public Transport","30/03/2017"
"Wolverhampton City Council","http://opendatacommunities.org/id/metropolitan-district-council/wolverhampton","MARKS&SPENCER PLC SACA","13.17","Children & Young People Support Costs","5411","Provisions (Not for resale)","30/03/2017"
"Wolverhampton City Council","http://opendatacommunities.org/id/metropolitan-district-council/wolverhampton","AMAZON UK RETAIL AMAZO","32.59","Technical Support","5999","Equipment - Purchase","30/03/2017"
"Wolverhampton City Council","http://opendatacommunities.org/id/metropolitan-district-council/wolverhampton","Amazon UK Marketplace","39.90","Technical Support","5942","Books","30/03/2017"
"Wolverhampton City Council","http://opendatacommunities.org/id/metropolitan-district-council/wolverhampton","Amazon UK Marketplace","56.94","EIP Locality 3","5942","Equipment - Purchase","30/03/2017"
"Wolverhampton City Council","http://opendatacommunities.org/id/metropolitan-district-council/wolverhampton","Amazon UK Marketplace","24.99","EIP Locality 3","5942","Provisions (Not for resale)","30/03/2017"
"Wolverhampton City Council","http://opendatacommunities.org/id/metropolitan-district-council/wolverhampton","NOTEMACHINE","250.00","CIN/CP Social Work Unit - Area 6","6011","Client Allowances","30/03/2017"
"Wolverhampton City Council","http://opendatacommunities.org/id/metropolitan-district-council/wolverhampton","NOTEMACHINE","200.00","Childrens with Disabilities Team","6011","Financial Assistance In Exceptional Circ","30/03/2017"
"Wolverhampton City Council","http://opendatacommunities.org/id/metropolitan-district-council/wolverhampton","ASDA SUPERSTORE","16.27","Discretionary Fund","5411","Materials","30/03/2017"
"Wolverhampton City Council","http://opendatacommunities.org/id/metropolitan-district-council/wolverhampton","WH SMITH","4.92","Headstart Phase 3","5994","Subsistence","30/03/2017"
"Wolverhampton City Council","http://opendatacommunities.org/id/metropolitan-district-council/wolverhampton","BT PAY BY PHONE","405.83","Makers Dozen","4814","Comms - Telephone Call charges","30/03/2017"
"Wolverhampton City Council","http://opendatacommunities.org/id/metropolitan-district-council/wolverhampton","BT BILL PAYMENT 1","240.67","Civic Halls Non Direct Management A/C","4812","Comms - Telephone Call charges","30/03/2017"
"Wolverhampton City Council","http://opendatacommunities.org/id/metropolitan-district-council/wolverhampton","EE LIMITED R501","10.00","School Crossing Patrol","4812","Comms - Mobile Telephones","30/03/2017"
"Wolverhampton City Council","http://opendatacommunities.org/id/metropolitan-district-council/wolverhampton","POST OFFICE COUNTER","6.04","Cemeteries","9402","Comms - Postage","30/03/2017"
"Wolverhampton City Council","http://opendatacommunities.org/id/metropolitan-district-council/wolverhampton","HALFORDS 0775","165.00","Public Health - Healthier Places Team","5940","Equipment - Purchase","30/03/2017"
"Wolverhampton City Council","http://opendatacommunities.org/id/metropolitan-district-council/wolverhampton","LOVE2SHOP.CO.UK","203.50","Public Health Support Costs","8641","Equipment - Purchase","30/03/2017"
"Wolverhampton City Council","http://opendatacommunities.org/id/metropolitan-district-council/wolverhampton","Amazon UK Marketplace","38.18","EIP Locality 8","5942","Equipment - Purchase","29/03/2017"
"Wolverhampton City Council","http://opendatacommunities.org/id/metropolitan-district-council/wolverhampton","WWW.MOSAICEVENTS.CO.UK","80.00","Public Health Support Costs","7399","Equipment - Purchase","29/03/2017"
"Wolverhampton City Council","http://opendatacommunities.org/id/metropolitan-district-council/wolverhampton","ASDA SUPERSTORE","11.65","B-Safe","5411","Subsistence","29/03/2017"
"Wolverhampton City Council","http://opendatacommunities.org/id/metropolitan-district-council/wolverhampton","ASDA SUPERSTORE","16.67","Headstart Phase 3","5411","Comms - Mobile Telephones","29/03/2017"
"Wolverhampton City Council","http://opendatacommunities.org/id/metropolitan-district-council/wolverhampton","TIMPSON LTD","36.00","Headstart Phase 3","7251","Fixtures and Fittings - R&M","29/03/2017"
"Wolverhampton City Council","http://opendatacommunities.org/id/metropolitan-district-council/wolverhampton","BARCLAYS BANK PLC","100.00","Headstart Phase 3","6011","Financial Assistance In Exceptional Circ","29/03/2017"
"Wolverhampton City Council","http://opendatacommunities.org/id/metropolitan-district-council/wolverhampton","SQUARESPACE INC.","173.36","Headstart Phase 3","7372","Computing - Purchase of Software","29/03/2017"
"Wolverhampton City Council","http://opendatacommunities.org/id/metropolitan-district-council/wolverhampton","Amazon UK Marketplace","69.16","IMPACT","5942","Educ Trips, Holidays, Outings, Activity","29/03/2017"
"Wolverhampton City Council","http://opendatacommunities.org/id/metropolitan-district-council/wolverhampton","ITUNES.COM/BILL","0.79","Strategic ICTS (ICT Serv Budget)","5735","Computing - Purchase of Software","29/03/2017"
"Wolverhampton City Council","http://opendatacommunities.org/id/metropolitan-district-council/wolverhampton","AMZ UK Digital Dwnload","46.66","Strategic ICTS (ICT Serv Budget)","5735","Computing - Purchase of Software","29/03/2017"
"Wolverhampton City Council","http://opendatacommunities.org/id/metropolitan-district-council/wolverhampton","ARGOS LTD","16.66","EIP Locality 4","5310","Equipment - Purchase","29/03/2017"
"Wolverhampton City Council","http://opendatacommunities.org/id/metropolitan-district-council/wolverhampton","Amazon UK Marketplace","5.75","Members Expenses","5942","Equipment - Purchase","29/03/2017"
"Wolverhampton City Council","http://opendatacommunities.org/id/metropolitan-district-council/wolverhampton","BLACK COUNTRY CHAMBER","240.00","Education Business Partnership","7399","Equipment - Purchase","29/03/2017"
"Wolverhampton City Council","http://opendatacommunities.org/id/metropolitan-district-council/wolverhampton","WMCA","66.00","CIN/CP S17 SW Unit - Area 4","9399","Client Transport","29/03/2017"
"Wolverhampton City Council","http://opendatacommunities.org/id/metropolitan-district-council/wolverhampton","ASDA SUPERSTORE","36.53","Civic Centre Catering","5411","Provisions (Not for resale)","29/03/2017"
"Wolverhampton City Council","http://opendatacommunities.org/id/metropolitan-district-council/wolverhampton","HIGHFIELD HOUSE HO","285.00","No Recourse to Public Funds - CIN/CP","7011","Services - Supplies & Services to users","29/03/2017"
"Wolverhampton City Council","http://opendatacommunities.org/id/metropolitan-district-council/wolverhampton","WWW.ICO.GOV.UK","35.00","Members Expenses","9399","Subscriptions","29/03/2017"
"Wolverhampton City Council","http://opendatacommunities.org/id/metropolitan-district-council/wolverhampton","WWW.ICO.GOV.UK","35.00","Members Expenses","9399","Subscriptions","29/03/2017"
"Wolverhampton City Council","http://opendatacommunities.org/id/metropolitan-district-council/wolverhampton","FACEBK JX9HFCNAR2","36.77","Public Health - Children 5 - 19","7311","Marketing \ Non-staff advertising","29/03/2017"
"Wolverhampton City Council","http://opendatacommunities.org/id/metropolitan-district-council/wolverhampton","FACEBK HX9HFCNAR2","463.92","Communications & Marketing - General","7311","Marketing \ Non-staff advertising","29/03/2017"
"Wolverhampton City Council","http://opendatacommunities.org/id/metropolitan-district-council/wolverhampton","ALPHAGRAPHICS","70.43","Language Studies Delivery Area","2741","Publications","29/03/2017"
"Wolverhampton City Council","http://opendatacommunities.org/id/metropolitan-district-council/wolverhampton","THE RANGE","41.87","LAC Transitions Team","5311","Client Allowances","29/03/2017"
"Wolverhampton City Council","http://opendatacommunities.org/id/metropolitan-district-council/wolverhampton","WOLVERHAMPTON CC","2.50","Headstart Phase 3","7523","Parking Fees","29/03/2017"
"Wolverhampton City Council","http://opendatacommunities.org/id/metropolitan-district-council/wolverhampton","AJPRODUCTS.CO.UK","142.80","Wolverhampton Indoor and Open Market","5021","Furniture","29/03/2017"
"Wolverhampton City Council","http://opendatacommunities.org/id/metropolitan-district-council/wolverhampton","TESCO STORES 5397","6.25","EIP Locality 1","5411","Financial Assistance In Exceptional Circ","29/03/2017"
"Wolverhampton City Council","http://opendatacommunities.org/id/metropolitan-district-council/wolverhampton","TESCO STORES 5194","163.78","Towers Outdoor Education Centre","5411","Provisions (Not for resale)","29/03/2017"
"Wolverhampton City Council","http://opendatacommunities.org/id/metropolitan-district-council/wolverhampton","O E METCALFE","296.00","Towers Outdoor Education Centre","5499","Catering","29/03/2017"
"Wolverhampton City Council","http://opendatacommunities.org/id/metropolitan-district-council/wolverhampton","123-REG.CO.UK","15.98","Technical Support","4816","Computing - Purchase of Software","29/03/2017"
"Wolverhampton City Council","http://opendatacommunities.org/id/metropolitan-district-council/wolverhampton","BARCLAYS BANK PLC","300.00","46a, Second Avenue, Low Hill","6011","Financial Assistance In Exceptional Circ","29/03/2017"
"Wolverhampton City Council","http://opendatacommunities.org/id/metropolitan-district-council/wolverhampton","ASDA SUPERSTORE","14.82","EIP Locality 3","5411","Provisions (Not for resale)","29/03/2017"
"Wolverhampton City Council","http://opendatacommunities.org/id/metropolitan-district-council/wolverhampton","Trainline","24.63","Legal Services","4112","Public Transport","29/03/2017"
"Wolverhampton City Council","http://opendatacommunities.org/id/metropolitan-district-council/wolverhampton","G & M HALE LTD","43.50","Creative Studies Delivery Area","5992","Materials for resale","29/03/2017"
"Wolverhampton City Council","http://opendatacommunities.org/id/metropolitan-district-council/wolverhampton","G & M HALE LTD","94.50","Discretionary Fund","5992","Materials","29/03/2017"
"Wolverhampton City Council","http://opendatacommunities.org/id/metropolitan-district-council/wolverhampton","Trainline","34.02","CIN/CP S17 SW Unit - Area 5","4112","Public Transport","29/03/2017"
"Wolverhampton City Council","http://opendatacommunities.org/id/metropolitan-district-council/wolverhampton","THE POST OFFICE","97.62","CIN/CP S17 SW Unit - Area 5","9402","Comms - Postage","29/03/2017"
"Wolverhampton City Council","http://opendatacommunities.org/id/metropolitan-district-council/wolverhampton","ARGOS LTD","12.49","Revenues","5310","Equipment - Purchase","29/03/2017"
"Wolverhampton City Council","http://opendatacommunities.org/id/metropolitan-district-council/wolverhampton","PREMIER INN","165.80","Adoption and Residence Team & Allowances","3811","Accommodation Costs","29/03/2017"
"Wolverhampton City Council","http://opendatacommunities.org/id/metropolitan-district-council/wolverhampton","WWW.ICO.GOV.UK","35.00","Members Expenses","9399","Subscriptions","29/03/2017"
"Wolverhampton City Council","http://opendatacommunities.org/id/metropolitan-district-council/wolverhampton","Virgin Trains","54.10","Members Expenses","4112","Public Transport","29/03/2017"
"Wolverhampton City Council","http://opendatacommunities.org/id/metropolitan-district-council/wolverhampton","TFM FARM & COUNTRY SUP","24.13","Northicote Farm","5399","Materials","29/03/2017"
"Wolverhampton City Council","http://opendatacommunities.org/id/metropolitan-district-council/wolverhampton","WAITROSE 696","28.69","Mayoral Expenses","5411","Hospitality","28/03/2017"
"Wolverhampton City Council","http://opendatacommunities.org/id/metropolitan-district-council/wolverhampton","ASDA SUPERSTORE","23.89","Mayoral Expenses","5411","Hospitality","28/03/2017"
"Wolverhampton City Council","http://opendatacommunities.org/id/metropolitan-district-council/wolverhampton","LOYD WEDNESFIELD WOLVE","200.00","EIP Locality 8","6011","Grant Payments","28/03/2017"
"Wolverhampton City Council","http://opendatacommunities.org/id/metropolitan-district-council/wolverhampton","HERON FOODS LTD","26.39","Headstart Phase 3","5499","Subsistence","28/03/2017"
"Wolverhampton City Council","http://opendatacommunities.org/id/metropolitan-district-council/wolverhampton","SCREWFIX DIRECT","20.17","Caretakers Community Centre","5211","Materials","28/03/2017"
"Wolverhampton City Council","http://opendatacommunities.org/id/metropolitan-district-council/wolverhampton","SCREWFIX DIRECT LT","5.49","Caretakers Community Centre","5211","Materials","28/03/2017"
"Wolverhampton City Council","http://opendatacommunities.org/id/metropolitan-district-council/wolverhampton","SNAP    GEOFILTERS","4.80","Communications & Marketing - General","7311","Marketing \ Non-staff advertising","28/03/2017"
"Wolverhampton City Council","http://opendatacommunities.org/id/metropolitan-district-council/wolverhampton","SNAP    GEOFILTERS","23.50","Communications & Marketing - General","7311","Marketing \ Non-staff advertising","28/03/2017"
"Wolverhampton City Council","http://opendatacommunities.org/id/metropolitan-district-council/wolverhampton","SNAP    GEOFILTERS","23.98","Communications & Marketing - General","7311","Marketing \ Non-staff advertising","28/03/2017"
"Wolverhampton City Council","http://opendatacommunities.org/id/metropolitan-district-council/wolverhampton","SNAP    GEOFILTERS","40.30","Communications & Marketing - General","7311","Marketing \ Non-staff advertising","28/03/2017"
"Wolverhampton City Council","http://opendatacommunities.org/id/metropolitan-district-council/wolverhampton","Virgin Trains","167.85","LAC Team","4112","Public Transport","28/03/2017"
"Wolverhampton City Council","http://opendatacommunities.org/id/metropolitan-district-council/wolverhampton","W M MORRISONS.COM","44.13","Discretionary Fund","5411","Materials","28/03/2017"
"Wolverhampton City Council","http://opendatacommunities.org/id/metropolitan-district-council/wolverhampton","WOLVERHAMPTON CC","2.50","Headstart Phase 3","7523","Parking Fees","28/03/2017"
"Wolverhampton City Council","http://opendatacommunities.org/id/metropolitan-district-council/wolverhampton","TVLICENSING.CO.UK","145.50","Court of Protection, Funerals Prot Prop","7392","Services - Supplies & Services to users","28/03/2017"
"Wolverhampton City Council","http://opendatacommunities.org/id/metropolitan-district-council/wolverhampton","AMZ Goldfinger Miracle","-7.00","EIP Locality 1","5999","Equipment - Purchase","28/03/2017"
"Wolverhampton City Council","http://opendatacommunities.org/id/metropolitan-district-council/wolverhampton","ARGOS LTD","12.50","LAC Transitions Team","5310","Client Allowances","28/03/2017"
"Wolverhampton City Council","http://opendatacommunities.org/id/metropolitan-district-council/wolverhampton","ARGOS LTD","54.97","LAC Transitions Team","5310","Client Allowances","28/03/2017"
"Wolverhampton City Council","http://opendatacommunities.org/id/metropolitan-district-council/wolverhampton","ASDA HOME SHOPPING","-0.20","Ernest Bold Court","5411","Provisions (Not for resale)","28/03/2017"
"Wolverhampton City Council","http://opendatacommunities.org/id/metropolitan-district-council/wolverhampton","ASDA HOME SHOPPING","98.07","Ernest Bold Court","5411","Provisions (Not for resale)","28/03/2017"
"Wolverhampton City Council","http://opendatacommunities.org/id/metropolitan-district-council/wolverhampton","TVLICENSING.CO.UK","145.50","LAC Transitions Team","7392","Client Allowances","28/03/2017"
"Wolverhampton City Council","http://opendatacommunities.org/id/metropolitan-district-council/wolverhampton","EE & T-MOBILE","133.23","Civic Halls Non Direct Management A/C","4814","Comms - Telephone Call charges","28/03/2017"
"Wolverhampton City Council","http://opendatacommunities.org/id/metropolitan-district-council/wolverhampton","AMAZON UK RETAIL AMAZO","52.65","Welfare Rights","5999","Stationery","28/03/2017"
"Wolverhampton City Council","http://opendatacommunities.org/id/metropolitan-district-council/wolverhampton","AMAZON UK RETAIL AMAZO","8.01","School Improvement","5999","Equipment - Purchase","28/03/2017"
"Wolverhampton City Council","http://opendatacommunities.org/id/metropolitan-district-council/wolverhampton","DERBY C CNCL TEL PAYME","33.60","Adoption and Residence Team & Allowances","9399","Services - Fees and Charges","28/03/2017"
"Wolverhampton City Council","http://opendatacommunities.org/id/metropolitan-district-council/wolverhampton","ARGOS LTD","15.00","CIN/CP S17 SW Unit - Area 3","5310","Equipment - Purchase","28/03/2017"
"Wolverhampton City Council","http://opendatacommunities.org/id/metropolitan-district-council/wolverhampton","TFM FARM & COUNTRY SUP","204.71","Northicote Farm","5399","Materials","28/03/2017"
"Wolverhampton City Council","http://opendatacommunities.org/id/metropolitan-district-council/wolverhampton","Twitter Online Ads","25.00","Communications & Marketing - General","7311","Marketing \ Non-staff advertising","27/03/2017"
"Wolverhampton City Council","http://opendatacommunities.org/id/metropolitan-district-council/wolverhampton","LUL TICKET MACHINE","12.30","Art Gallery","4112","Public Transport","27/03/2017"
"Wolverhampton City Council","http://opendatacommunities.org/id/metropolitan-district-council/wolverhampton","PREMIER INN","174.99","Headstart Phase 3","3811","Accommodation Costs","27/03/2017"
"Wolverhampton City Council","http://opendatacommunities.org/id/metropolitan-district-council/wolverhampton","Amazon UK Marketplace","87.86","Headstart Phase 3","5942","Equipment - Purchase","27/03/2017"
"Wolverhampton City Council","http://opendatacommunities.org/id/metropolitan-district-council/wolverhampton","IMPERIAL LONDON HOTELS","90.83","Headstart Phase 3","7011","Services - Supplies & Services to users","27/03/2017"
"Wolverhampton City Council","http://opendatacommunities.org/id/metropolitan-district-council/wolverhampton","Trainline","102.04","Headstart Phase 3","4112","Public Transport","27/03/2017"
"Wolverhampton City Council","http://opendatacommunities.org/id/metropolitan-district-council/wolverhampton","Trainline","62.47","Headstart Phase 3","4112","Public Transport","27/03/2017"
"Wolverhampton City Council","http://opendatacommunities.org/id/metropolitan-district-council/wolverhampton","Wix.com","46.57","Technical Support","5817","Computing - Purchase of Software","27/03/2017"
"Wolverhampton City Council","http://opendatacommunities.org/id/metropolitan-district-council/wolverhampton","PAYPAL  123REGLIMIT","8.98","Technical Support","4816","Computing - Purchase of Software","27/03/2017"
"Wolverhampton City Council","http://opendatacommunities.org/id/metropolitan-district-council/wolverhampton","UXPIN.COM","81.73","City Direct","7372","Computing - Purchase of Software","27/03/2017"
"Wolverhampton City Council","http://opendatacommunities.org/id/metropolitan-district-council/wolverhampton","NCVO","195.00","Pupil Premium","5399","Conference Expenses","27/03/2017"
"Wolverhampton City Council","http://opendatacommunities.org/id/metropolitan-district-council/wolverhampton","TWWHOLESALE.CO.UK","52.46","LAC Transitions Team","5251","Client Allowances","27/03/2017"
"Wolverhampton City Council","http://opendatacommunities.org/id/metropolitan-district-council/wolverhampton","SAINSBURYS 2040","6.45","Headstart Phase 3","5411","Subsistence","27/03/2017"
"Wolverhampton City Council","http://opendatacommunities.org/id/metropolitan-district-council/wolverhampton","Amazon UK Marketplace","41.27","IMPACT","5942","Educ Trips, Holidays, Outings, Activity","27/03/2017"
"Wolverhampton City Council","http://opendatacommunities.org/id/metropolitan-district-council/wolverhampton","Amazon UK Marketplace","13.70","Global Budgets","5942","Books","27/03/2017"
"Wolverhampton City Council","http://opendatacommunities.org/id/metropolitan-district-council/wolverhampton","B & Q 1243","-30.00","Ernest Bold Court","5211","Equipment - R & M","27/03/2017"
"Wolverhampton City Council","http://opendatacommunities.org/id/metropolitan-district-council/wolverhampton","B & Q 1243","30.00","Ernest Bold Court","5211","Equipment - R & M","27/03/2017"
"Wolverhampton City Council","http://opendatacommunities.org/id/metropolitan-district-council/wolverhampton","ASDA HOME SHOPPING","-1.82","Ernest Bold Court","5411","Provisions (Not for resale)","27/03/2017"
"Wolverhampton City Council","http://opendatacommunities.org/id/metropolitan-district-council/wolverhampton","ASDA HOME SHOPPING","-0.52","Ernest Bold Court","5411","Provisions (Not for resale)","27/03/2017"
"Wolverhampton City Council","http://opendatacommunities.org/id/metropolitan-district-council/wolverhampton","ASDA HOME SHOPPING","96.19","Ernest Bold Court","5411","Provisions (Not for resale)","27/03/2017"
"Wolverhampton City Council","http://opendatacommunities.org/id/metropolitan-district-council/wolverhampton","AMZ TANNC-UK","-3.99","Members Expenses","5999","Equipment - Purchase","27/03/2017"
"Wolverhampton City Council","http://opendatacommunities.org/id/metropolitan-district-council/wolverhampton","ARGOS LTD","333.32","LAC Transitions Team","5310","Client Allowances","27/03/2017"
"Wolverhampton City Council","http://opendatacommunities.org/id/metropolitan-district-council/wolverhampton","ARGOS LTD","95.78","LAC Transitions Team","5310","Client Allowances","27/03/2017"
"Wolverhampton City Council","http://opendatacommunities.org/id/metropolitan-district-council/wolverhampton","NOVOTEL WOLVERHAMPTON","125.00","Civic Halls Non Direct Management A/C","7011","Services - Professional Fees","27/03/2017"
"Wolverhampton City Council","http://opendatacommunities.org/id/metropolitan-district-council/wolverhampton","REGISTRARS OFFICE","21.00","CIN/CP S17 SW Unit - Area 7","8299","Training Expenses","27/03/2017"
"Wolverhampton City Council","http://opendatacommunities.org/id/metropolitan-district-council/wolverhampton","WMCA","1328.04","Travel Scratch Cards & Rail Warrants","4112","Public Transport","27/03/2017"
"Wolverhampton City Council","http://opendatacommunities.org/id/metropolitan-district-council/wolverhampton","ASDA HOME SHOPPING","-17.44","Upper Pendeford Farm Childrens Home","5411","Provisions (Not for resale)","27/03/2017"
"Wolverhampton City Council","http://opendatacommunities.org/id/metropolitan-district-council/wolverhampton","ASDA HOME SHOPPING","198.78","Upper Pendeford Farm Childrens Home","5411","Provisions (Not for resale)","27/03/2017"
"Wolverhampton City Council","http://opendatacommunities.org/id/metropolitan-district-council/wolverhampton","WWW.CATERING-APPLIANCE","-553.20","Upper Pendeford Farm Childrens Home","5046","Equipment - Purchase","27/03/2017"
"Wolverhampton City Council","http://opendatacommunities.org/id/metropolitan-district-council/wolverhampton","CT HOME WEDNESFIELD","139.58","CIN/CP S17 SW Unit - Area 4","8398","Services - Supplies & Services to users","27/03/2017"
"Wolverhampton City Council","http://opendatacommunities.org/id/metropolitan-district-council/wolverhampton","CURRYS S/S","95.82","Ground Maintenance East","5732","Equipment - Purchase","27/03/2017"
"Wolverhampton City Council","http://opendatacommunities.org/id/metropolitan-district-council/wolverhampton","HOBBY CRAFT LTD","25.00","Ground Maintenance East","5970","Materials","27/03/2017"
"Wolverhampton City Council","http://opendatacommunities.org/id/metropolitan-district-council/wolverhampton","ARGOS LTD","16.65","Revenues","5310","Equipment - Purchase","27/03/2017"
"Wolverhampton City Council","http://opendatacommunities.org/id/metropolitan-district-council/wolverhampton","THE FLOWER STALL","58.33","Mayoral Expenses","5992","Hospitality","27/03/2017"
"Wolverhampton City Council","http://opendatacommunities.org/id/metropolitan-district-council/wolverhampton","NOVOTEL WOLVERHAMPTON","99.00","Adoption and Residence Team & Allowances","7011","Accommodation Costs","27/03/2017"
"Wolverhampton City Council","http://opendatacommunities.org/id/metropolitan-district-council/wolverhampton","GO CARZ","7.24","EIP Locality 5","4121","Client Transport","27/03/2017"
"Wolverhampton City Council","http://opendatacommunities.org/id/metropolitan-district-council/wolverhampton","ASDA HOME SHOPPING","53.15","EIP Locality 5","5411","Financial Assistance In Exceptional Circ","27/03/2017"
"Wolverhampton City Council","http://opendatacommunities.org/id/metropolitan-district-council/wolverhampton","SMYTHS TOYS","10.82","LAC Transitions Team","5945","Client Allowances","27/03/2017"
"Wolverhampton City Council","http://opendatacommunities.org/id/metropolitan-district-council/wolverhampton","Amazon UK Marketplace","3.94","EIP Locality 8","5942","Equipment - Purchase","27/03/2017"
"Wolverhampton City Council","http://opendatacommunities.org/id/metropolitan-district-council/wolverhampton","Amazon UK Marketplace","7.16","EIP Locality 8","5942","Equipment - Purchase","27/03/2017"
"Wolverhampton City Council","http://opendatacommunities.org/id/metropolitan-district-council/wolverhampton","Amazon UK Marketplace","5.95","EIP Locality 8","5942","Equipment - Purchase","27/03/2017"
"Wolverhampton City Council","http://opendatacommunities.org/id/metropolitan-district-council/wolverhampton","SCREWFIX DIRECT","20.38","Caretakers Community Centre","5211","Materials","27/03/2017"
"Wolverhampton City Council","http://opendatacommunities.org/id/metropolitan-district-council/wolverhampton","FACEBK X84BLCJAR2","62.79","Public Health - Children 5 - 19","7311","Marketing \ Non-staff advertising","27/03/2017"
"Wolverhampton City Council","http://opendatacommunities.org/id/metropolitan-district-council/wolverhampton","FACEBK W84BLCJAR2","437.36","Communications & Marketing - General","7311","Marketing \ Non-staff advertising","27/03/2017"
"Wolverhampton City Council","http://opendatacommunities.org/id/metropolitan-district-council/wolverhampton","ROYAL CARPETS","205.83","LAC Transitions Team","5713","Client Allowances","24/03/2017"
"Wolverhampton City Council","http://opendatacommunities.org/id/metropolitan-district-council/wolverhampton","WEST MIDLAND METRO","4.17","Headstart Phase 3","4131","Public Transport","24/03/2017"
"Wolverhampton City Council","http://opendatacommunities.org/id/metropolitan-district-council/wolverhampton","PREMIER INN","249.98","Headstart Phase 3","3811","Accommodation Costs","24/03/2017"
"Wolverhampton City Council","http://opendatacommunities.org/id/metropolitan-district-council/wolverhampton","Trainline","66.72","Headstart Phase 3","4112","Public Transport","24/03/2017"
"Wolverhampton City Council","http://opendatacommunities.org/id/metropolitan-district-council/wolverhampton","Trainline","125.37","Headstart Phase 3","4112","Public Transport","24/03/2017"
"Wolverhampton City Council","http://opendatacommunities.org/id/metropolitan-district-council/wolverhampton","Trainline","35.55","Archives","4112","Public Transport","24/03/2017"
"Wolverhampton City Council","http://opendatacommunities.org/id/metropolitan-district-council/wolverhampton","Trainline","28.00","CIN/CP S17 SW Unit - Area 6","4112","Public Transport","24/03/2017"
"Wolverhampton City Council","http://opendatacommunities.org/id/metropolitan-district-council/wolverhampton","ROYAL CARPETS","300.00","LAC Transitions Team","5713","Client Allowances","24/03/2017"
"Wolverhampton City Council","http://opendatacommunities.org/id/metropolitan-district-council/wolverhampton","Trainline","133.67","Headstart Phase 3","4112","Public Transport","24/03/2017"
"Wolverhampton City Council","http://opendatacommunities.org/id/metropolitan-district-council/wolverhampton","Trainline","156.57","Early Years & Universal Service","4112","Public Transport","24/03/2017"
"Wolverhampton City Council","http://opendatacommunities.org/id/metropolitan-district-council/wolverhampton","WEST COAST TRAINS","8.50","Strategic ICTS (ICT Serv Budget)","4112","Public Transport","24/03/2017"
"Wolverhampton City Council","http://opendatacommunities.org/id/metropolitan-district-council/wolverhampton","AMAZON UK RETAIL AMAZO","219.63","Strategic ICTS (ICT Serv Budget)","5999","Equipment - Purchase","24/03/2017"
"Wolverhampton City Council","http://opendatacommunities.org/id/metropolitan-district-council/wolverhampton","Amazon UK Marketplace","1.69","Strategic ICTS (ICT Serv Budget)","5942","Computing - Purchase of Hardware","24/03/2017"
"Wolverhampton City Council","http://opendatacommunities.org/id/metropolitan-district-council/wolverhampton","TRAVELODGE","63.00","LAC Team","3615","Services - Supplies & Services to users","24/03/2017"
"Wolverhampton City Council","http://opendatacommunities.org/id/metropolitan-district-council/wolverhampton","Amazon UK Marketplace","7.10","EIP Locality 1","5942","Equipment - Purchase","24/03/2017"
"Wolverhampton City Council","http://opendatacommunities.org/id/metropolitan-district-council/wolverhampton","WWW.AUDIONATION-UK.COM","-30.00","Condition Surveys","5065","Equipment - R & M","24/03/2017"
"Wolverhampton City Council","http://opendatacommunities.org/id/metropolitan-district-council/wolverhampton","WWW.AUDIONATION-UK.COM","331.00","Condition Surveys","5065","Equipment - R & M","24/03/2017"
"Wolverhampton City Council","http://opendatacommunities.org/id/metropolitan-district-council/wolverhampton","WEST MID TRAVEL","94.20","Outreach Support","4131","Public Transport","24/03/2017"
"Wolverhampton City Council","http://opendatacommunities.org/id/metropolitan-district-council/wolverhampton","ASDAN","183.34","LAC Transitions Team","8299","Training Expenses","24/03/2017"
"Wolverhampton City Council","http://opendatacommunities.org/id/metropolitan-district-council/wolverhampton","IKEA LIMITED","295.00","LAC Transitions Team","5712","Client Allowances","24/03/2017"
"Wolverhampton City Council","http://opendatacommunities.org/id/metropolitan-district-council/wolverhampton","WAYFAIR STORES LIM","54.99","LAC Transitions Team","5965","Client Allowances","24/03/2017"
"Wolverhampton City Council","http://opendatacommunities.org/id/metropolitan-district-council/wolverhampton","HOLLAND & BARRETT","16.60","Towers Outdoor Education Centre","5999","Provisions (Not for resale)","24/03/2017"
"Wolverhampton City Council","http://opendatacommunities.org/id/metropolitan-district-council/wolverhampton","WWW.STAPLES.CO.UK","62.49","Towers Outdoor Education Centre","5943","Stationery","24/03/2017"
"Wolverhampton City Council","http://opendatacommunities.org/id/metropolitan-district-council/wolverhampton","AMAZON UK RETAIL AMAZO","77.49","Towers Outdoor Education Centre","5999","Equipment - Purchase","24/03/2017"
"Wolverhampton City Council","http://opendatacommunities.org/id/metropolitan-district-council/wolverhampton","MICROSOFT    STORE","33.75","Learning Technologies","5816","Computing - Purchase of Software","24/03/2017"
"Wolverhampton City Council","http://opendatacommunities.org/id/metropolitan-district-council/wolverhampton","Amazon UK Marketplace","23.61","Learning Technologies","5942","Books","24/03/2017"
"Wolverhampton City Council","http://opendatacommunities.org/id/metropolitan-district-council/wolverhampton","WORLDSTORES LTD","106.00","Technical Support","5719","Equipment - Purchase","24/03/2017"
"Wolverhampton City Council","http://opendatacommunities.org/id/metropolitan-district-council/wolverhampton","POST OFFICE COUNTER","6.45","Economic Development","9402","Comms - Postage","24/03/2017"
"Wolverhampton City Council","http://opendatacommunities.org/id/metropolitan-district-council/wolverhampton","Amazon UK Marketplace","136.80","Payments Team","5942","Equipment - Purchase","24/03/2017"
"Wolverhampton City Council","http://opendatacommunities.org/id/metropolitan-district-council/wolverhampton","FRED WILLIAMS CYCLE","29.17","Shopmobility","5940","Equipment - Purchase","24/03/2017"
"Wolverhampton City Council","http://opendatacommunities.org/id/metropolitan-district-council/wolverhampton","Trainline","200.43","CIN/CP Social Work Unit - Area 4","4112","Client Transport","24/03/2017"
"Wolverhampton City Council","http://opendatacommunities.org/id/metropolitan-district-council/wolverhampton","POST OFFICE COUNTER","18.40","CIN/CP S17 SW Unit - Area 7","9402","Comms - Postage","24/03/2017"
"Wolverhampton City Council","http://opendatacommunities.org/id/metropolitan-district-council/wolverhampton","AB JONES RADIO/TV","194.70","Children & Family Contact Services","5732","Equipment - Purchase","24/03/2017"
"Wolverhampton City Council","http://opendatacommunities.org/id/metropolitan-district-council/wolverhampton","AMAZON UK RETAIL AMAZO","26.23","School Improvement","5999","Equipment - Purchase","24/03/2017"
"Wolverhampton City Council","http://opendatacommunities.org/id/metropolitan-district-council/wolverhampton","DRI Nuance","166.23","Fostering Team & Allowances","5734","Computing - Purchase of Software","24/03/2017"
"Wolverhampton City Council","http://opendatacommunities.org/id/metropolitan-district-council/wolverhampton","Virgin Trains","195.00","Adoption and Residence Team & Allowances","4112","Public Transport","24/03/2017"
"Wolverhampton City Council","http://opendatacommunities.org/id/metropolitan-district-council/wolverhampton","RYGOR KIDDERMINSTER","115.98","Fleet Management","7538","Services - Professional Fees","24/03/2017"
"Wolverhampton City Council","http://opendatacommunities.org/id/metropolitan-district-council/wolverhampton","ARGOS LTD","8.32","Revenues","5310","Equipment - Purchase","24/03/2017"
"Wolverhampton City Council","http://opendatacommunities.org/id/metropolitan-district-council/wolverhampton","B&M RETAIL LTD","58.95","LAC Transitions Team","5310","Client Allowances","24/03/2017"
"Wolverhampton City Council","http://opendatacommunities.org/id/metropolitan-district-council/wolverhampton","HOME BARGAINS","12.49","LAC Transitions Team","5251","Client Allowances","24/03/2017"
"Wolverhampton City Council","http://opendatacommunities.org/id/metropolitan-district-council/wolverhampton","Trainline","7.70","CIN/CP S17 SW Unit - Area 6","4112","Public Transport","24/03/2017"
"Wolverhampton City Council","http://opendatacommunities.org/id/metropolitan-district-council/wolverhampton","WM MORRISON 024","2.73","Mayoral Expenses","5411","Hospitality","23/03/2017"
"Wolverhampton City Council","http://opendatacommunities.org/id/metropolitan-district-council/wolverhampton","Trainline","75.58","AES Staff Development","4112","Public Transport","23/03/2017"
"Wolverhampton City Council","http://opendatacommunities.org/id/metropolitan-district-council/wolverhampton","Trainline","51.25","Youth Offending Team","4112","Public Transport","23/03/2017"
"Wolverhampton City Council","http://opendatacommunities.org/id/metropolitan-district-council/wolverhampton","PAYPAL  INTERNATION","46.50","EIP Locality 6","8699","Subscriptions","23/03/2017"
"Wolverhampton City Council","http://opendatacommunities.org/id/metropolitan-district-council/wolverhampton","KFC","59.44","B-Safe","5814","Subsistence","23/03/2017"
"Wolverhampton City Council","http://opendatacommunities.org/id/metropolitan-district-council/wolverhampton","B & Q 1243","54.87","Public Conveniences","5211","Equipment - Purchase","23/03/2017"
"Wolverhampton City Council","http://opendatacommunities.org/id/metropolitan-district-council/wolverhampton","PREMIER INN","93.32","Strategic ICTS (ICT Serv Budget)","3811","Conference Expenses","23/03/2017"
"Wolverhampton City Council","http://opendatacommunities.org/id/metropolitan-district-council/wolverhampton","AMAZON UK RETAIL AMAZO","24.10","Strategic ICTS (ICT Serv Budget)","5999","Equipment - Purchase","23/03/2017"
"Wolverhampton City Council","http://opendatacommunities.org/id/metropolitan-district-council/wolverhampton","Amazon UK Marketplace","34.95","Strategic ICTS (ICT Serv Budget)","5942","Computing - Purchase of Hardware","23/03/2017"
"Wolverhampton City Council","http://opendatacommunities.org/id/metropolitan-district-council/wolverhampton","Amazon UK Marketplace","56.04","Strategic ICTS (ICT Serv Budget)","5942","Computing - Purchase of Hardware","23/03/2017"
"Wolverhampton City Council","http://opendatacommunities.org/id/metropolitan-district-council/wolverhampton","Amazon UK Marketplace","148.96","Strategic ICTS (ICT Serv Budget)","5942","Computing - Purchase of Hardware","23/03/2017"
"Wolverhampton City Council","http://opendatacommunities.org/id/metropolitan-district-council/wolverhampton","BRITANNIA","35.00","CIN/CP S17 SW Unit - Area 2","7011","Services - Supplies & Services to users","23/03/2017"
"Wolverhampton City Council","http://opendatacommunities.org/id/metropolitan-district-council/wolverhampton","Trainline","83.84","CIN/CP S17 SW Unit - Area 2","4112","Public Transport","23/03/2017"
"Wolverhampton City Council","http://opendatacommunities.org/id/metropolitan-district-council/wolverhampton","Virgin Trains","100.50","Planning","4112","Public Transport","23/03/2017"
"Wolverhampton City Council","http://opendatacommunities.org/id/metropolitan-district-council/wolverhampton","Virgin Trains","152.70","Planning","4112","Public Transport","23/03/2017"
"Wolverhampton City Council","http://opendatacommunities.org/id/metropolitan-district-council/wolverhampton","LOYD BILSTON","50.00","EIP Locality 2","6011","Financial Assistance In Exceptional Circ","23/03/2017"
"Wolverhampton City Council","http://opendatacommunities.org/id/metropolitan-district-council/wolverhampton","WP-THE CRATFS COUNCIL","112.45","Michael Brennand Spring Touring 2017","8398","Marketing \ Non-staff advertising","23/03/2017"
"Wolverhampton City Council","http://opendatacommunities.org/id/metropolitan-district-council/wolverhampton","Trainline","38.45","SEN Special Education Admin","4112","Public Transport","23/03/2017"
"Wolverhampton City Council","http://opendatacommunities.org/id/metropolitan-district-council/wolverhampton","WILKO RETAIL LIMIT","0.67","Blakenhall Commty & Healthy Living Ctr","5722","Equipment - Purchase","23/03/2017"
"Wolverhampton City Council","http://opendatacommunities.org/id/metropolitan-district-council/wolverhampton","Amazon Prime","7.99","Technical Support","5968","Subscriptions","23/03/2017"
"Wolverhampton City Council","http://opendatacommunities.org/id/metropolitan-district-council/wolverhampton","CLAREGATE S.STN FS408","4.17","Ernest Bold Court","5541","Petrol","23/03/2017"
"Wolverhampton City Council","http://opendatacommunities.org/id/metropolitan-district-council/wolverhampton","GRO HM PASSPORT OFFICE","9.25","LAC Team","9399","Financial Assistance In Exceptional Circ","23/03/2017"
"Wolverhampton City Council","http://opendatacommunities.org/id/metropolitan-district-council/wolverhampton","Amazon UK Marketplace","13.98","Members Expenses","5942","Equipment - Purchase","23/03/2017"
"Wolverhampton City Council","http://opendatacommunities.org/id/metropolitan-district-council/wolverhampton","Virgin Trains","54.50","Members Expenses","4112","Public Transport","23/03/2017"
"Wolverhampton City Council","http://opendatacommunities.org/id/metropolitan-district-council/wolverhampton","WWW.SOLACE.ORG.UK","594.00","Strategic Director Place","8699","Subscriptions","23/03/2017"
"Wolverhampton City Council","http://opendatacommunities.org/id/metropolitan-district-council/wolverhampton","Amazon UK Marketplace","73.45","Brick Wonders/Lego","5942","Materials","23/03/2017"
"Wolverhampton City Council","http://opendatacommunities.org/id/metropolitan-district-council/wolverhampton","REGISTRARS OFFICE","20.00","CIN/CP S17 SW Unit - Area 7","8299","Training Expenses","23/03/2017"
"Wolverhampton City Council","http://opendatacommunities.org/id/metropolitan-district-council/wolverhampton","INVOICED DEBT","153.50","School Improvement","7399","Equipment - Purchase","23/03/2017"
"Wolverhampton City Council","http://opendatacommunities.org/id/metropolitan-district-council/wolverhampton","Amazon UK Marketplace","21.48","School Improvement","5942","Books","23/03/2017"
"Wolverhampton City Council","http://opendatacommunities.org/id/metropolitan-district-council/wolverhampton","Amazon UK Marketplace","115.70","School Improvement","5942","Books","23/03/2017"
"Wolverhampton City Council","http://opendatacommunities.org/id/metropolitan-district-council/wolverhampton","PREMIER INN","64.99","Adoption and Residence Team & Allowances","3811","Accommodation Costs","23/03/2017"
"Wolverhampton City Council","http://opendatacommunities.org/id/metropolitan-district-council/wolverhampton","Trainline","222.87","Adoption and Residence Team & Allowances","4112","Public Transport","23/03/2017"
"Wolverhampton City Council","http://opendatacommunities.org/id/metropolitan-district-council/wolverhampton","WALSALL COUNCIL","19.00","EIP Locality 5","9399","Financial Assistance In Exceptional Circ","23/03/2017"
"Wolverhampton City Council","http://opendatacommunities.org/id/metropolitan-district-council/wolverhampton","Trainline","10.05","CIN/CP S17 SW Unit - Area 6","4112","Public Transport","23/03/2017"
"Wolverhampton City Council","http://opendatacommunities.org/id/metropolitan-district-council/wolverhampton","LOYD MORR WILLENHALL","250.00","CIN/CP S17 SW Unit - Area 6","6011","Financial Assistance In Exceptional Circ","23/03/2017"
"Wolverhampton City Council","http://opendatacommunities.org/id/metropolitan-district-council/wolverhampton","Virgin Trains","322.00","Members Expenses","4112","Public Transport","23/03/2017"
"Wolverhampton City Council","http://opendatacommunities.org/id/metropolitan-district-council/wolverhampton","Amazon UK Marketplace","25.98","Strategic ICTS (ICT Serv Budget)","5942","Computing - Purchase of Hardware","23/03/2017"
"Wolverhampton City Council","http://opendatacommunities.org/id/metropolitan-district-council/wolverhampton","Amazon UK Marketplace","7.98","Strategic ICTS (ICT Serv Budget)","5942","Computing - Purchase of Hardware","23/03/2017"
"Wolverhampton City Council","http://opendatacommunities.org/id/metropolitan-district-council/wolverhampton","Amazon UK Marketplace","24.99","Strategic ICTS (ICT Serv Budget)","5942","Computing - Purchase of Hardware","23/03/2017"
"Wolverhampton City Council","http://opendatacommunities.org/id/metropolitan-district-council/wolverhampton","Amazon UK Marketplace","24.99","Strategic ICTS (ICT Serv Budget)","5942","Computing - Purchase of Hardware","23/03/2017"
"Wolverhampton City Council","http://opendatacommunities.org/id/metropolitan-district-council/wolverhampton","Amazon UK Marketplace","9.55","Strategic ICTS (ICT Serv Budget)","5942","Computing - Purchase of Hardware","23/03/2017"
"Wolverhampton City Council","http://opendatacommunities.org/id/metropolitan-district-council/wolverhampton","Amazon UK Marketplace","11.37","Strategic ICTS (ICT Serv Budget)","5942","Computing - Purchase of Hardware","23/03/2017"
"Wolverhampton City Council","http://opendatacommunities.org/id/metropolitan-district-council/wolverhampton","Amazon UK Marketplace","78.09","Strategic ICTS (ICT Serv Budget)","5942","Computing - Purchase of Hardware","23/03/2017"
"Wolverhampton City Council","http://opendatacommunities.org/id/metropolitan-district-council/wolverhampton","ASDA HOME SHOPPING","2.50","Upper Pendeford Farm Childrens Home","5411","Provisions (Not for resale)","23/03/2017"
"Wolverhampton City Council","http://opendatacommunities.org/id/metropolitan-district-council/wolverhampton","EDUCATION & TRAINI","100.00","AES Staff Development","8220","Training Expenses","23/03/2017"
"Wolverhampton City Council","http://opendatacommunities.org/id/metropolitan-district-council/wolverhampton","WOLVERHAMPTON CC","2.50","Headstart Phase 3","7523","Parking Fees","23/03/2017"
"Wolverhampton City Council","http://opendatacommunities.org/id/metropolitan-district-council/wolverhampton","THE POST OFFICE","32.00","Wolverhampton Indoor and Open Market","9402","Comms - Postage","23/03/2017"
"Wolverhampton City Council","http://opendatacommunities.org/id/metropolitan-district-council/wolverhampton","CUMMINGS BROTHERS LOCK","34.27","Caretakers Community Centre","7399","R&M - Departmental planned (external)","23/03/2017"
"Wolverhampton City Council","http://opendatacommunities.org/id/metropolitan-district-council/wolverhampton","SAINSBURYS SACAT 2040","3.00","Macmillan Welfare Rights","5411","Provisions (Not for resale)","22/03/2017"
"Wolverhampton City Council","http://opendatacommunities.org/id/metropolitan-district-council/wolverhampton","THE ISLAND HOUSE","6.50","B-Safe","5812","Subsistence","22/03/2017"
"Wolverhampton City Council","http://opendatacommunities.org/id/metropolitan-district-council/wolverhampton","XMA LTD","405.76","Strategic ICTS (ICT Serv Budget)","7372","Computing - Purchase of Software","22/03/2017"
"Wolverhampton City Council","http://opendatacommunities.org/id/metropolitan-district-council/wolverhampton","ROYAL CARPETS","150.00","CIN/CP S17 SW Unit - Area 3","5713","Equipment - Purchase","22/03/2017"
"Wolverhampton City Council","http://opendatacommunities.org/id/metropolitan-district-council/wolverhampton","FACEBK G36QPCSAR2","10.91","Communications & Marketing - General","7311","Marketing \ Non-staff advertising","22/03/2017"
"Wolverhampton City Council","http://opendatacommunities.org/id/metropolitan-district-council/wolverhampton","FACEBK B36QPCSAR2","489.23","Communications & Marketing - General","7311","Marketing \ Non-staff advertising","22/03/2017"
"Wolverhampton City Council","http://opendatacommunities.org/id/metropolitan-district-council/wolverhampton","THE NEW BRIDGE GUEST H","55.00","Emergency Duty Team","7011","Services - Supplies & Services to users","22/03/2017"
"Wolverhampton City Council","http://opendatacommunities.org/id/metropolitan-district-council/wolverhampton","ROYAL CARPETS","331.67","LAC Transitions Team","5713","Client Allowances","22/03/2017"
"Wolverhampton City Council","http://opendatacommunities.org/id/metropolitan-district-council/wolverhampton","WWW.PATLABEL.CO.UK","35.45","Telecare","2741","Stationery","22/03/2017"
"Wolverhampton City Council","http://opendatacommunities.org/id/metropolitan-district-council/wolverhampton","LIDDELL ELECTRICAL DIS","18.00","Caretakers Community Centre","5065","R&M - Departmental planned (external)","22/03/2017"
"Wolverhampton City Council","http://opendatacommunities.org/id/metropolitan-district-council/wolverhampton","PO WILLENHALL RD 5497","10.00","EIP Locality 1","6011","Financial Assistance In Exceptional Circ","22/03/2017"
"Wolverhampton City Council","http://opendatacommunities.org/id/metropolitan-district-council/wolverhampton","G & M HALE LTD","103.50","Creative Studies Delivery Area","5992","Materials for resale","22/03/2017"
"Wolverhampton City Council","http://opendatacommunities.org/id/metropolitan-district-council/wolverhampton","G & M HALE LTD","127.20","Discretionary Fund","5992","Materials","22/03/2017"
"Wolverhampton City Council","http://opendatacommunities.org/id/metropolitan-district-council/wolverhampton","G & M HALE LTD","30.00","Discretionary Fund","5992","Materials","22/03/2017"
"Wolverhampton City Council","http://opendatacommunities.org/id/metropolitan-district-council/wolverhampton","POST OFFICE COUNTER","192.00","Fostering Team & Allowances","9402","Comms - Postage","22/03/2017"
"Wolverhampton City Council","http://opendatacommunities.org/id/metropolitan-district-council/wolverhampton","WWW.OBARTPUMPS.CO.","29.00","Fleet Management","5085","Equipment - Purchase","22/03/2017"
"Wolverhampton City Council","http://opendatacommunities.org/id/metropolitan-district-council/wolverhampton","AUTOBASE (GB) LIMITED","136.92","Fleet Management","7538","Equipment - Purchase","22/03/2017"
"Wolverhampton City Council","http://opendatacommunities.org/id/metropolitan-district-council/wolverhampton","REGISTRARS OFFICE","20.00","CIN/CP S17 SW Unit - Area 1","8299","Printing","22/03/2017"
"Wolverhampton City Council","http://opendatacommunities.org/id/metropolitan-district-council/wolverhampton","TVLICENSING.CO.UK","145.50","LAC Transitions Team","7392","Client Allowances","22/03/2017"
"Wolverhampton City Council","http://opendatacommunities.org/id/metropolitan-district-council/wolverhampton","WWW.NISBETS.COM","137.93","Mayoral Expenses","5964","Hospitality","22/03/2017"
"Wolverhampton City Council","http://opendatacommunities.org/id/metropolitan-district-council/wolverhampton","PAYPAL  MIDFRDFORUM","130.00","Audit Services","8641","Educ Trips, Holidays, Outings, Activity","22/03/2017"
"Wolverhampton City Council","http://opendatacommunities.org/id/metropolitan-district-council/wolverhampton","SCREWFIX DIRECT","239.61","Technical Material","5211","Materials","22/03/2017"
"Wolverhampton City Council","http://opendatacommunities.org/id/metropolitan-district-council/wolverhampton","HIGHFIELD HOUSE HO","285.00","No Recourse to Public Funds - CIN/CP","7011","Services - Supplies & Services to users","22/03/2017"
"Wolverhampton City Council","http://opendatacommunities.org/id/metropolitan-district-council/wolverhampton","MIDLAND DOMESTIC","184.00","EIP Locality 1","5722","Financial Assistance In Exceptional Circ","22/03/2017"
"Wolverhampton City Council","http://opendatacommunities.org/id/metropolitan-district-council/wolverhampton","B & Q 1243","12.10","Duke Street Bungalows","5211","Equipment - R & M","22/03/2017"
"Wolverhampton City Council","http://opendatacommunities.org/id/metropolitan-district-council/wolverhampton","LOYD BILSTON","20.00","EIP Locality 2","6011","Financial Assistance In Exceptional Circ","22/03/2017"
"Wolverhampton City Council","http://opendatacommunities.org/id/metropolitan-district-council/wolverhampton","B&M RETAIL","19.12","LAC Transitions Team","5310","Client Allowances","22/03/2017"
"Wolverhampton City Council","http://opendatacommunities.org/id/metropolitan-district-council/wolverhampton","TESCO STORES 5194","177.97","Towers Outdoor Education Centre","5411","Provisions (Not for resale)","22/03/2017"
"Wolverhampton City Council","http://opendatacommunities.org/id/metropolitan-district-council/wolverhampton","HN NUTTALL LTD","129.57","Towers Outdoor Education Centre","5085","Equipment - Purchase","22/03/2017"
"Wolverhampton City Council","http://opendatacommunities.org/id/metropolitan-district-council/wolverhampton","BURTECH CYF","47.90","Towers Outdoor Education Centre","7538","Vehicle Maintenance - Repairs","22/03/2017"
"Wolverhampton City Council","http://opendatacommunities.org/id/metropolitan-district-council/wolverhampton","123 REG R/T","83.91","Technical Support","5968","Subscriptions","22/03/2017"
"Wolverhampton City Council","http://opendatacommunities.org/id/metropolitan-district-council/wolverhampton","AMAZON UK RETAIL AMAZO","82.00","Workforce Development","5999","Training Expenses","22/03/2017"
"Wolverhampton City Council","http://opendatacommunities.org/id/metropolitan-district-council/wolverhampton","REGISTRARS OFFICE","27.00","Head of Service - CINCP","8299","Services - Professional Fees","22/03/2017"
"Wolverhampton City Council","http://opendatacommunities.org/id/metropolitan-district-council/wolverhampton","G & M HALE (SUNDRIES)","16.25","Creative Studies Delivery Area","5992","Materials for resale","22/03/2017"
"Wolverhampton City Council","http://opendatacommunities.org/id/metropolitan-district-council/wolverhampton","G & M HALE (SUNDRIES)","27.40","Discretionary Fund","5992","Materials","22/03/2017"
"Wolverhampton City Council","http://opendatacommunities.org/id/metropolitan-district-council/wolverhampton","ASDA HOME SHOPPING","98.59","Ernest Bold Court","5411","Provisions (Not for resale)","21/03/2017"
"Wolverhampton City Council","http://opendatacommunities.org/id/metropolitan-district-council/wolverhampton","CENTRAL SOURCE LTD","90.00","College of Further Education","2741","Equipment - Purchase","21/03/2017"
"Wolverhampton City Council","http://opendatacommunities.org/id/metropolitan-district-council/wolverhampton","BRITANNIA","50.00","CIN/CP S17 SW Unit - Area 5","7011","Accommodation Costs","21/03/2017"
"Wolverhampton City Council","http://opendatacommunities.org/id/metropolitan-district-council/wolverhampton","AMAZON UK RETAIL AMAZO","24.99","Brick Wonders/Lego","5999","Materials","21/03/2017"
"Wolverhampton City Council","http://opendatacommunities.org/id/metropolitan-district-council/wolverhampton","AMAZON UK RETAIL AMAZO","24.99","Brick Wonders/Lego","5999","Materials","21/03/2017"
"Wolverhampton City Council","http://opendatacommunities.org/id/metropolitan-district-council/wolverhampton","TVLICENSING.CO.UK","145.50","Children & Family Contact Services","7392","Equipment - Purchase","21/03/2017"
"Wolverhampton City Council","http://opendatacommunities.org/id/metropolitan-district-council/wolverhampton","ASDA SUPERSTORE","12.00","CIN/CP S17 SW Unit - Area 5","5411","Provisions (Not for resale)","21/03/2017"
"Wolverhampton City Council","http://opendatacommunities.org/id/metropolitan-district-council/wolverhampton","ASDA SUPERSTORE","12.00","CIN/CP S17 SW Unit - Area 5","5411","Provisions (Not for resale)","21/03/2017"
"Wolverhampton City Council","http://opendatacommunities.org/id/metropolitan-district-council/wolverhampton","ASDA SUPERSTORE","22.50","CIN/CP S17 SW Unit - Area 5","5411","Provisions (Not for resale)","21/03/2017"
"Wolverhampton City Council","http://opendatacommunities.org/id/metropolitan-district-council/wolverhampton","REGISTRARS OFFICE","30.00","Adoption and Residence Team & Allowances","8299","Services - Fees and Charges","21/03/2017"
"Wolverhampton City Council","http://opendatacommunities.org/id/metropolitan-district-council/wolverhampton","Trainline","42.43","Adoption and Residence Team & Allowances","4112","Public Transport","21/03/2017"
"Wolverhampton City Council","http://opendatacommunities.org/id/metropolitan-district-council/wolverhampton","ALLFLEX UK GROUP","40.95","Northicote Farm","5964","Materials","21/03/2017"
"Wolverhampton City Council","http://opendatacommunities.org/id/metropolitan-district-council/wolverhampton","Amazon UK Marketplace","15.32","Strategic ICTS (ICT Serv Budget)","5942","Computing - Purchase of Hardware","21/03/2017"
"Wolverhampton City Council","http://opendatacommunities.org/id/metropolitan-district-council/wolverhampton","SAINSBURYS (2340)","53.85","Quality Assurance & Policies","5411","Provisions (Not for resale)","21/03/2017"
"Wolverhampton City Council","http://opendatacommunities.org/id/metropolitan-district-council/wolverhampton","W M MORRISONS.COM","118.23","Discretionary Fund","5411","Materials","21/03/2017"
"Wolverhampton City Council","http://opendatacommunities.org/id/metropolitan-district-council/wolverhampton","Trainline","83.18","Art Gallery","4112","Public Transport","21/03/2017"
"Wolverhampton City Council","http://opendatacommunities.org/id/metropolitan-district-council/wolverhampton","WOLVERHAMPTON CC","3.33","Headstart Phase 3","7523","Parking Fees","21/03/2017"
"Wolverhampton City Council","http://opendatacommunities.org/id/metropolitan-district-council/wolverhampton","SOCIAL FRAMES","45.00","Connexions Contract","7221","Publications","21/03/2017"
"Wolverhampton City Council","http://opendatacommunities.org/id/metropolitan-district-council/wolverhampton","AMAZON UK RETAIL AMAZO","82.24","EIP Locality 1","5999","Equipment - Purchase","21/03/2017"
"Wolverhampton City Council","http://opendatacommunities.org/id/metropolitan-district-council/wolverhampton","CUMMINGS BROTHERS LOCK","75.00","46a, Second Avenue, Low Hill","7399","Equipment - Purchase","21/03/2017"
"Wolverhampton City Council","http://opendatacommunities.org/id/metropolitan-district-council/wolverhampton","ASDA HOME SHOPPING","-0.17","Ernest Bold Court","5411","Provisions (Not for resale)","21/03/2017"
"Wolverhampton City Council","http://opendatacommunities.org/id/metropolitan-district-council/wolverhampton","WMCA","54.50","IMPACT","9399","Financial Assistance In Exceptional Circ","20/03/2017"
"Wolverhampton City Council","http://opendatacommunities.org/id/metropolitan-district-council/wolverhampton","CVENT LES MILLS UK","85.00","WV Active Business Support","7399","Training Expenses","20/03/2017"
"Wolverhampton City Council","http://opendatacommunities.org/id/metropolitan-district-council/wolverhampton","NOTEMACHINE","250.00","Childrens with Disabilities Team","6011","Section 17","20/03/2017"
"Wolverhampton City Council","http://opendatacommunities.org/id/metropolitan-district-council/wolverhampton","EDUCATION & TRAINI","50.00","AES Staff Development","8220","Training Expenses","20/03/2017"
"Wolverhampton City Council","http://opendatacommunities.org/id/metropolitan-district-council/wolverhampton","Trainline","67.37","AES Staff Development","4112","Public Transport","20/03/2017"
"Wolverhampton City Council","http://opendatacommunities.org/id/metropolitan-district-council/wolverhampton","WISEPOPSCOM","40.88","City Direct","7372","Computing - Purchase of Software","20/03/2017"
"Wolverhampton City Council","http://opendatacommunities.org/id/metropolitan-district-council/wolverhampton","NOVOTEL HOTELS","69.00","Business Manager - Place","3642","Conference Expenses","20/03/2017"
"Wolverhampton City Council","http://opendatacommunities.org/id/metropolitan-district-council/wolverhampton","WWW.BANDFORHIRE.NET","71.90","Corporate Directorate Provision","7929","Conference Expenses","20/03/2017"
"Wolverhampton City Council","http://opendatacommunities.org/id/metropolitan-district-council/wolverhampton","Amazon UK Marketplace","590.70","Communications & Marketing - General","5942","Equipment - Purchase","20/03/2017"
"Wolverhampton City Council","http://opendatacommunities.org/id/metropolitan-district-council/wolverhampton","Amazon UK Marketplace","737.36","Communications & Marketing - General","5942","Equipment - Purchase","20/03/2017"
"Wolverhampton City Council","http://opendatacommunities.org/id/metropolitan-district-council/wolverhampton","ASDA SUPERSTORE","70.10","Intensive Family Support Team","5411","Provisions (Not for resale)","20/03/2017"
"Wolverhampton City Council","http://opendatacommunities.org/id/metropolitan-district-council/wolverhampton","LADS & LASSES SCHOOL W","33.99","Intensive Family Support Team","5641","Equipment - Purchase","20/03/2017"
"Wolverhampton City Council","http://opendatacommunities.org/id/metropolitan-district-council/wolverhampton","WILKO RETAIL LIMIT","7.00","Central Costs","5722","Equipment - Purchase","20/03/2017"
"Wolverhampton City Council","http://opendatacommunities.org/id/metropolitan-district-council/wolverhampton","Amazon UK Marketplace","53.22","Headstart Phase 3","5942","Equipment - Purchase","20/03/2017"
"Wolverhampton City Council","http://opendatacommunities.org/id/metropolitan-district-council/wolverhampton","Amazon UK Marketplace","7.32","Headstart Phase 3","5942","Educ Trips, Holidays, Outings, Activity","20/03/2017"
"Wolverhampton City Council","http://opendatacommunities.org/id/metropolitan-district-council/wolverhampton","WOLVERHAMPTON CC","3.33","Headstart Phase 3","7523","Parking Fees","20/03/2017"
"Wolverhampton City Council","http://opendatacommunities.org/id/metropolitan-district-council/wolverhampton","MYPRINT247","27.37","Headstart Phase 3","2741","Printing","20/03/2017"
"Wolverhampton City Council","http://opendatacommunities.org/id/metropolitan-district-council/wolverhampton","ARGOS LTD","6.66","Court of Protection, Funerals Prot Prop","5310","Equipment - Purchase","20/03/2017"
"Wolverhampton City Council","http://opendatacommunities.org/id/metropolitan-district-council/wolverhampton","TIPPERS WOLVERHAMPTON","5.05","Bilston Town Hall","5072","Equipment - Purchase","20/03/2017"
"Wolverhampton City Council","http://opendatacommunities.org/id/metropolitan-district-council/wolverhampton","MONKEYOFFICE.CO.UK","60.72","Business Manager - Place","5943","Stationery","20/03/2017"
"Wolverhampton City Council","http://opendatacommunities.org/id/metropolitan-district-council/wolverhampton","TESCO DELIVERY SAVER2","2.92","Towers Outdoor Education Centre","5968","Provisions (Not for resale)","20/03/2017"
"Wolverhampton City Council","http://opendatacommunities.org/id/metropolitan-district-council/wolverhampton","IKEA LIMITED","15.00","Civic Centre","5712","Equipment - Purchase","20/03/2017"
"Wolverhampton City Council","http://opendatacommunities.org/id/metropolitan-district-council/wolverhampton","Amazon Prime","7.99","EIP Locality 3","5968","Provisions (Not for resale)","20/03/2017"
"Wolverhampton City Council","http://opendatacommunities.org/id/metropolitan-district-council/wolverhampton","ASDA HOME SHOPPING","-1.26","Ernest Bold Court","5411","Provisions (Not for resale)","20/03/2017"
"Wolverhampton City Council","http://opendatacommunities.org/id/metropolitan-district-council/wolverhampton","ASDA HOME SHOPPING","93.59","Ernest Bold Court","5411","Provisions (Not for resale)","20/03/2017"
"Wolverhampton City Council","http://opendatacommunities.org/id/metropolitan-district-council/wolverhampton","PREMIER INN","-71.00","Economic Development","3811","Services - Supplies & Services to users","20/03/2017"
"Wolverhampton City Council","http://opendatacommunities.org/id/metropolitan-district-council/wolverhampton","WM MORRISONS","49.64","Strategic Director Place","5411","Provisions (Not for resale)","20/03/2017"
"Wolverhampton City Council","http://opendatacommunities.org/id/metropolitan-district-council/wolverhampton","AMAZON UK RETAIL AMAZO","3.80","Brick Wonders/Lego","5999","Materials","20/03/2017"
"Wolverhampton City Council","http://opendatacommunities.org/id/metropolitan-district-council/wolverhampton","AMAZON UK RETAIL AMAZO","15.45","Brick Wonders/Lego","5999","Materials","20/03/2017"
"Wolverhampton City Council","http://opendatacommunities.org/id/metropolitan-district-council/wolverhampton","AMAZON UK RETAIL AMAZO","3.80","Brick Wonders/Lego","5999","Materials","20/03/2017"
"Wolverhampton City Council","http://opendatacommunities.org/id/metropolitan-district-council/wolverhampton","AMAZON UK RETAIL AMAZO","12.50","Brick Wonders/Lego","5999","Materials","20/03/2017"
"Wolverhampton City Council","http://opendatacommunities.org/id/metropolitan-district-council/wolverhampton","AMAZON UK RETAIL AMAZO","12.50","Brick Wonders/Lego","5999","Materials","20/03/2017"
"Wolverhampton City Council","http://opendatacommunities.org/id/metropolitan-district-council/wolverhampton","AMAZON UK RETAIL AMAZO","16.67","Brick Wonders/Lego","5999","Equipment - Purchase","20/03/2017"
"Wolverhampton City Council","http://opendatacommunities.org/id/metropolitan-district-council/wolverhampton","Trainline","83.33","CIN/CP Social Work Unit - Area 4","4112","Client Transport","20/03/2017"
"Wolverhampton City Council","http://opendatacommunities.org/id/metropolitan-district-council/wolverhampton","WATERSTONES.COM","17.50","Workforce Development","5942","Training Expenses","20/03/2017"
"Wolverhampton City Council","http://opendatacommunities.org/id/metropolitan-district-council/wolverhampton","ALLDAY TIME SYSTEM","121.99","Arbor Scheme","5046","Materials","20/03/2017"
"Wolverhampton City Council","http://opendatacommunities.org/id/metropolitan-district-council/wolverhampton","TFM FARM & COUNTRY SUP","68.07","Northicote Farm","5399","Equipment - Purchase","20/03/2017"
"Wolverhampton City Council","http://opendatacommunities.org/id/metropolitan-district-council/wolverhampton","Trainline","265.71","CIN/CP Social Work Unit - Area 8","4112","Public Transport","20/03/2017"
"Wolverhampton City Council","http://opendatacommunities.org/id/metropolitan-district-council/wolverhampton","ASDA HOME SHOPPING","50.72","EIP Locality 5","5411","Financial Assistance In Exceptional Circ","20/03/2017"
"Wolverhampton City Council","http://opendatacommunities.org/id/metropolitan-district-council/wolverhampton","Akzonobel","65.59","Maintenance & Technical Materials","5198","Materials","20/03/2017"
"Wolverhampton City Council","http://opendatacommunities.org/id/metropolitan-district-council/wolverhampton","FLYTE SO FANCYG-KITS.C","39.74","Northicote Farm","5995","Materials","20/03/2017"
"Wolverhampton City Council","http://opendatacommunities.org/id/metropolitan-district-council/wolverhampton","B & Q 1243","23.78","Ernest Bold Court","5211","Equipment - R & M","17/03/2017"
"Wolverhampton City Council","http://opendatacommunities.org/id/metropolitan-district-council/wolverhampton","HM PASSPORT OFFICE","46.00","LAC Team","9399","Financial Assistance In Exceptional Circ","17/03/2017"
"Wolverhampton City Council","http://opendatacommunities.org/id/metropolitan-district-council/wolverhampton","AMAZON UK RETAIL AMAZO","24.99","Brick Wonders/Lego","5999","Materials","17/03/2017"
"Wolverhampton City Council","http://opendatacommunities.org/id/metropolitan-district-council/wolverhampton","AMAZON UK RETAIL AMAZO","24.99","Brick Wonders/Lego","5999","Materials","17/03/2017"
"Wolverhampton City Council","http://opendatacommunities.org/id/metropolitan-district-council/wolverhampton","YMLP.COM","105.00","Audience Development","7372","Marketing \ Non-staff advertising","17/03/2017"
"Wolverhampton City Council","http://opendatacommunities.org/id/metropolitan-district-council/wolverhampton","WWW.PLIMSOLL.CO.UK","350.00","Legal Services","2741","Publications","17/03/2017"
"Wolverhampton City Council","http://opendatacommunities.org/id/metropolitan-district-council/wolverhampton","Trainline","77.21","Legal Services","4112","Public Transport","17/03/2017"
"Wolverhampton City Council","http://opendatacommunities.org/id/metropolitan-district-council/wolverhampton","NO 5 CHAMBERS LTD","175.00","Legal Services","8111","Training Expenses","17/03/2017"
"Wolverhampton City Council","http://opendatacommunities.org/id/metropolitan-district-council/wolverhampton","AUTOBASE (GB) LIMITED","73.48","Fleet Management","7538","Equipment - Purchase","17/03/2017"
"Wolverhampton City Council","http://opendatacommunities.org/id/metropolitan-district-council/wolverhampton","ARGOS RETAIL GROUP","93.27","CIN/CP S17 SW Unit - Area 4","5310","Equipment - Purchase","17/03/2017"
"Wolverhampton City Council","http://opendatacommunities.org/id/metropolitan-district-council/wolverhampton","ARGOS RETAIL GROUP","27.48","CIN/CP S17 SW Unit - Area 4","5310","Equipment - Purchase","17/03/2017"
"Wolverhampton City Council","http://opendatacommunities.org/id/metropolitan-district-council/wolverhampton","ARGOS RETAIL GROUP","76.61","CIN/CP S17 SW Unit - Area 4","5310","Equipment - Purchase","17/03/2017"
"Wolverhampton City Council","http://opendatacommunities.org/id/metropolitan-district-council/wolverhampton","E01510300000000","40.00","Emergency Duty Team","6011","Financial Assistance In Exceptional Circ","17/03/2017"
"Wolverhampton City Council","http://opendatacommunities.org/id/metropolitan-district-council/wolverhampton","ILLUMINATE","300.00","Foundation Studies","5942","Books","17/03/2017"
"Wolverhampton City Council","http://opendatacommunities.org/id/metropolitan-district-council/wolverhampton","TVLICENSING.CO.UK","145.50","LAC Transitions Team","7392","Client Allowances","17/03/2017"
"Wolverhampton City Council","http://opendatacommunities.org/id/metropolitan-district-council/wolverhampton","ARGOS LTD","23.32","Court of Protection, Funerals Prot Prop","5310","Equipment - Purchase","17/03/2017"
"Wolverhampton City Council","http://opendatacommunities.org/id/metropolitan-district-council/wolverhampton","Trainline","166.16","CIN/CP S17 SW Unit - Area 2","4112","Public Transport","17/03/2017"
"Wolverhampton City Council","http://opendatacommunities.org/id/metropolitan-district-council/wolverhampton","JAMES LISTER & SONS LT","31.06","Wholesale Market Facilities Management","5085","Cleaning Supplies and Materials","17/03/2017"
"Wolverhampton City Council","http://opendatacommunities.org/id/metropolitan-district-council/wolverhampton","Amazon EU","74.58","EIP Locality 1","5969","Equipment - Purchase","17/03/2017"
"Wolverhampton City Council","http://opendatacommunities.org/id/metropolitan-district-council/wolverhampton","PREMIER INN","7.49","Michael Brennand Spring Touring 2017","3811","Subsistence","17/03/2017"
"Wolverhampton City Council","http://opendatacommunities.org/id/metropolitan-district-council/wolverhampton","WWW.STAPLES.CO.UK","45.77","Towers Outdoor Education Centre","5943","Equipment - Purchase","17/03/2017"
"Wolverhampton City Council","http://opendatacommunities.org/id/metropolitan-district-council/wolverhampton","TESCO STORES 5194","48.02","Towers Outdoor Education Centre","5411","Provisions (Not for resale)","17/03/2017"
"Wolverhampton City Council","http://opendatacommunities.org/id/metropolitan-district-council/wolverhampton","Amazon UK Marketplace","5.20","Towers Outdoor Education Centre","5942","Equipment - Purchase","17/03/2017"
"Wolverhampton City Council","http://opendatacommunities.org/id/metropolitan-district-council/wolverhampton","B & Q 1243","8.33","Learning Disabilities Management","5211","Equipment - R & M","17/03/2017"
"Wolverhampton City Council","http://opendatacommunities.org/id/metropolitan-district-council/wolverhampton","HALFORDS 0775","84.70","Mayoral Expenses","5940","Equipment - Purchase","17/03/2017"
"Wolverhampton City Council","http://opendatacommunities.org/id/metropolitan-district-council/wolverhampton","AMAZON UK RETAIL AMAZO","9.33","Strategic ICTS (ICT Serv Budget)","5999","Equipment - Purchase","17/03/2017"
"Wolverhampton City Council","http://opendatacommunities.org/id/metropolitan-district-council/wolverhampton","WWW.ISTOCK.COM","162.50","Communications & Marketing - General","5971","Services - Professional Fees","17/03/2017"
"Wolverhampton City Council","http://opendatacommunities.org/id/metropolitan-district-council/wolverhampton","ARGOS RETAIL GROUP","62.87","CIN/CP S17 SW Unit - Area 4","5310","Equipment - Purchase","17/03/2017"
"Wolverhampton City Council","http://opendatacommunities.org/id/metropolitan-district-council/wolverhampton","ARGOS LTD","152.89","LAC Transitions Team","5310","Client Allowances","17/03/2017"
"Wolverhampton City Council","http://opendatacommunities.org/id/metropolitan-district-council/wolverhampton","CT WOLVERHAMPTON","50.00","LAC Transitions Team","8398","Client Allowances","17/03/2017"
"Wolverhampton City Council","http://opendatacommunities.org/id/metropolitan-district-council/wolverhampton","CT WOLVERHAMPTON","120.00","LAC Transitions Team","8398","Client Allowances","17/03/2017"
"Wolverhampton City Council","http://opendatacommunities.org/id/metropolitan-district-council/wolverhampton","NOTEMACHINE","250.00","CIN/CP S17 SW Unit - Area 6","6011","Financial Assistance In Exceptional Circ","17/03/2017"
"Wolverhampton City Council","http://opendatacommunities.org/id/metropolitan-district-council/wolverhampton","ALDI","34.29","LAC Transitions Team","5411","Client Allowances","17/03/2017"
"Wolverhampton City Council","http://opendatacommunities.org/id/metropolitan-district-council/wolverhampton","SAINSBURYS 2040","9.50","LAC Transitions Team","5411","Client Allowances","17/03/2017"
"Wolverhampton City Council","http://opendatacommunities.org/id/metropolitan-district-council/wolverhampton","WWW.SUPERFI.CO.UK","108.33","Maintenance & Technical Materials","5722","Equipment - Purchase","17/03/2017"
"Wolverhampton City Council","http://opendatacommunities.org/id/metropolitan-district-council/wolverhampton","HM PASSPORT OFFICE","138.00","LAC Team","9399","Financial Assistance In Exceptional Circ","16/03/2017"
"Wolverhampton City Council","http://opendatacommunities.org/id/metropolitan-district-council/wolverhampton","Virgin Trains","110.30","Environmental Health - Pub Prot - Gen","4112","Services - Fees and Charges","16/03/2017"
"Wolverhampton City Council","http://opendatacommunities.org/id/metropolitan-district-council/wolverhampton","TOYS R US","379.06","Brick Wonders/Lego","5311","Materials","16/03/2017"
"Wolverhampton City Council","http://opendatacommunities.org/id/metropolitan-district-council/wolverhampton","EB  SEMINAR ASSERTIVEN","179.95","Central Training","7399","Training Expenses","16/03/2017"
"Wolverhampton City Council","http://opendatacommunities.org/id/metropolitan-district-council/wolverhampton","WEST COAST TRAINS","6.10","Road Safety","4112","Public Transport","16/03/2017"
"Wolverhampton City Council","http://opendatacommunities.org/id/metropolitan-district-council/wolverhampton","RIBA ENTERPRISES LTD","475.00","Legal Services","5942","Books","16/03/2017"
"Wolverhampton City Council","http://opendatacommunities.org/id/metropolitan-district-council/wolverhampton","GO CARZ","11.01","CIN/CP S17 SW Unit - Area 5","4121","Client Transport","16/03/2017"
"Wolverhampton City Council","http://opendatacommunities.org/id/metropolitan-district-council/wolverhampton","WWW,SHOP.STERLING-POWE","168.80","Fleet Management","5065","Equipment - Purchase","16/03/2017"
"Wolverhampton City Council","http://opendatacommunities.org/id/metropolitan-district-council/wolverhampton","CT HOME WEDNESFIELD","202.08","CIN/CP S17 SW Unit - Area 4","8398","Services - Supplies & Services to users","16/03/2017"
"Wolverhampton City Council","http://opendatacommunities.org/id/metropolitan-district-council/wolverhampton","MEMORY-MAP.CO.UK","66.67","Towers Outdoor Education Centre","5045","Equipment - Purchase","16/03/2017"
"Wolverhampton City Council","http://opendatacommunities.org/id/metropolitan-district-council/wolverhampton","WWW.MAPLIN.CO.UK","49.97","Maintenance & Technical Materials","5732","Equipment - Purchase","16/03/2017"
"Wolverhampton City Council","http://opendatacommunities.org/id/metropolitan-district-council/wolverhampton","PAYPAL  FABMANIA","26.00","Maintenance & Technical Materials","5651","Equipment - Purchase","16/03/2017"
"Wolverhampton City Council","http://opendatacommunities.org/id/metropolitan-district-council/wolverhampton","ASDA SUPERSTORE","6.00","Discretionary Fund","5411","Materials","16/03/2017"
"Wolverhampton City Council","http://opendatacommunities.org/id/metropolitan-district-council/wolverhampton","B&M RETAIL","49.11","LAC Transitions Team","5310","Client Allowances","16/03/2017"
"Wolverhampton City Council","http://opendatacommunities.org/id/metropolitan-district-council/wolverhampton","IKEA LIMITED","107.71","LAC Transitions Team","5712","Client Allowances","16/03/2017"
"Wolverhampton City Council","http://opendatacommunities.org/id/metropolitan-district-council/wolverhampton","WORLDSTORES LTD","249.98","LAC Transitions Team","5719","Client Allowances","16/03/2017"
"Wolverhampton City Council","http://opendatacommunities.org/id/metropolitan-district-council/wolverhampton","AMAZON UK RETAIL AMAZO","20.82","Headstart Phase 3","5999","Equipment - Purchase","16/03/2017"
"Wolverhampton City Council","http://opendatacommunities.org/id/metropolitan-district-council/wolverhampton","WM MORRISONS","6.00","Safeguarding Board - Adults","5411","Provisions (Not for resale)","16/03/2017"
"Wolverhampton City Council","http://opendatacommunities.org/id/metropolitan-district-council/wolverhampton","POST OFFICE COUNTER","6.18","Safeguarding Admin Resource","9402","Comms - Postage","16/03/2017"
"Wolverhampton City Council","http://opendatacommunities.org/id/metropolitan-district-council/wolverhampton","Amazon UK Marketplace","41.57","Telecare","5942","Equipment - Purchase","16/03/2017"
"Wolverhampton City Council","http://opendatacommunities.org/id/metropolitan-district-council/wolverhampton","PREMIER INN","69.16","Contemporary Gallery","3811","Services - Supplies & Services to users","16/03/2017"
"Wolverhampton City Council","http://opendatacommunities.org/id/metropolitan-district-council/wolverhampton","CAWTHRAY'S","258.00","Towers Outdoor Education Centre","7251","Fixtures and Fittings - Purchases","16/03/2017"
"Wolverhampton City Council","http://opendatacommunities.org/id/metropolitan-district-council/wolverhampton","BLAS AR FWYD CYF","60.84","Towers Outdoor Education Centre","5812","Catering","16/03/2017"
"Wolverhampton City Council","http://opendatacommunities.org/id/metropolitan-district-council/wolverhampton","PAYPAL  BANANAPRINT","22.90","Technical Support","8931","Services - Professional Fees","16/03/2017"
"Wolverhampton City Council","http://opendatacommunities.org/id/metropolitan-district-council/wolverhampton","WWW.CROMWELL.CO.UK","71.33","Technical Material","5072","Equipment - Purchase","16/03/2017"
"Wolverhampton City Council","http://opendatacommunities.org/id/metropolitan-district-council/wolverhampton","HALFORDS 0775","12.46","Northicote Farm","5940","Equipment - R & M","16/03/2017"
"Wolverhampton City Council","http://opendatacommunities.org/id/metropolitan-district-council/wolverhampton","ASDA SUPERSTORE","17.23","Mayoral Expenses","5411","Hospitality","16/03/2017"
"Wolverhampton City Council","http://opendatacommunities.org/id/metropolitan-district-council/wolverhampton","NOTEMACHINE","250.00","Childrens with Disabilities Team","6011","No Recourse to Public Funds","16/03/2017"
"Wolverhampton City Council","http://opendatacommunities.org/id/metropolitan-district-council/wolverhampton","LOYD WEDNESFIELD WOLVE","80.00","EIP Locality 8","6011","Grant Payments","16/03/2017"
"Wolverhampton City Council","http://opendatacommunities.org/id/metropolitan-district-council/wolverhampton","HUGHES","326.77","LAC Transitions Team","5732","Client Allowances","16/03/2017"
"Wolverhampton City Council","http://opendatacommunities.org/id/metropolitan-district-council/wolverhampton","ARGOS RETAIL GROUP","167.93","LAC Transitions Team","5310","Client Allowances","16/03/2017"
"Wolverhampton City Council","http://opendatacommunities.org/id/metropolitan-district-council/wolverhampton","CASH GENERATOR","159.99","LAC Transitions Team","5999","Client Allowances","16/03/2017"
"Wolverhampton City Council","http://opendatacommunities.org/id/metropolitan-district-council/wolverhampton","BRITISHFOODSHOP","29.50","Headstart Phase 3","5499","Catering","16/03/2017"
"Wolverhampton City Council","http://opendatacommunities.org/id/metropolitan-district-council/wolverhampton","N SOFTWARE INC","1708.21","Strategic ICTS (ICT Serv Budget)","5045","Computing - Purchase of Hardware","16/03/2017"
"Wolverhampton City Council","http://opendatacommunities.org/id/metropolitan-district-council/wolverhampton","GOOGLE  42Gears","35.23","Strategic ICTS (ICT Serv Budget)","5734","Computing - Purchase of Software","16/03/2017"
"Wolverhampton City Council","http://opendatacommunities.org/id/metropolitan-district-council/wolverhampton","CLONE-MEDIA.CO.UK","104.80","City Marketing (Place)","5943","Marketing \ Non-staff advertising","16/03/2017"
"Wolverhampton City Council","http://opendatacommunities.org/id/metropolitan-district-council/wolverhampton","LOOP11.COM","169.05","City Direct","7372","Computing - Purchase of Software","15/03/2017"
"Wolverhampton City Council","http://opendatacommunities.org/id/metropolitan-district-council/wolverhampton","CURRYS ONLINE","65.64","Pupil Premium","5732","Equipment - Purchase","15/03/2017"
"Wolverhampton City Council","http://opendatacommunities.org/id/metropolitan-district-council/wolverhampton","MULTI E-COMMERCE","116.66","EIP Locality 6","5712","Equipment - Purchase","15/03/2017"
"Wolverhampton City Council","http://opendatacommunities.org/id/metropolitan-district-council/wolverhampton","PERSONALLIC","245.83","GEN Y City Transnational","7392","Services - Consultants","15/03/2017"
"Wolverhampton City Council","http://opendatacommunities.org/id/metropolitan-district-council/wolverhampton","C L JONES LIMITED","42.99","Towers Outdoor Education Centre","5211","Materials","15/03/2017"
"Wolverhampton City Council","http://opendatacommunities.org/id/metropolitan-district-council/wolverhampton","FUEL CARD SERVICES LTD","164.98","Towers Outdoor Education Centre","7399","Equipment - Purchase","15/03/2017"
"Wolverhampton City Council","http://opendatacommunities.org/id/metropolitan-district-council/wolverhampton","Amazon UK Marketplace","7.02","Global Budgets","5942","Books","15/03/2017"
"Wolverhampton City Council","http://opendatacommunities.org/id/metropolitan-district-council/wolverhampton","ASDA HOME SHOPPING","-5.94","Ernest Bold Court","5411","Provisions (Not for resale)","15/03/2017"
"Wolverhampton City Council","http://opendatacommunities.org/id/metropolitan-district-council/wolverhampton","ASDA HOME SHOPPING","-0.33","Ernest Bold Court","5411","Provisions (Not for resale)","15/03/2017"
"Wolverhampton City Council","http://opendatacommunities.org/id/metropolitan-district-council/wolverhampton","ASDA HOME SHOPPING","88.16","Ernest Bold Court","5411","Provisions (Not for resale)","15/03/2017"
"Wolverhampton City Council","http://opendatacommunities.org/id/metropolitan-district-council/wolverhampton","PREMIER INN","59.17","Economic Development","3811","Services - Supplies & Services to users","15/03/2017"
"Wolverhampton City Council","http://opendatacommunities.org/id/metropolitan-district-council/wolverhampton","CHAMPIONS (UK) PLC","1030.00","Economic Development","7392","Services - Consultants","15/03/2017"
"Wolverhampton City Council","http://opendatacommunities.org/id/metropolitan-district-council/wolverhampton","EE LIMITED R501","10.00","School Crossing Patrol","4812","Comms - Mobile Telephones","15/03/2017"
"Wolverhampton City Council","http://opendatacommunities.org/id/metropolitan-district-council/wolverhampton","NETWORK WEST MIDLANDS","66.00","CIN/CP S17 SW Unit - Area 4","9399","Client Transport","15/03/2017"
"Wolverhampton City Council","http://opendatacommunities.org/id/metropolitan-district-council/wolverhampton","UNTOUCHABLES","5.50","Education Catering - General Overheads","5231","Materials","15/03/2017"
"Wolverhampton City Council","http://opendatacommunities.org/id/metropolitan-district-council/wolverhampton","GO CARZ","11.22","CIN/CP S17 SW Unit - Area 5","4121","Client Transport","15/03/2017"
"Wolverhampton City Council","http://opendatacommunities.org/id/metropolitan-district-council/wolverhampton","MAPLIN WOLVERHAMPT WV2","-244.95","Strategic ICTS (ICT Serv Budget)","4812","Comms - Mobile Telephones","15/03/2017"
"Wolverhampton City Council","http://opendatacommunities.org/id/metropolitan-district-council/wolverhampton","ENVY","30.00","Intensive Family Support Team","7230","Equipment - Purchase","15/03/2017"
"Wolverhampton City Council","http://opendatacommunities.org/id/metropolitan-district-council/wolverhampton","WILKO RETAIL LIMIT","110.25","LAC Transitions Team","5722","Client Allowances","15/03/2017"
"Wolverhampton City Council","http://opendatacommunities.org/id/metropolitan-district-council/wolverhampton","ARGOS LTD","14.16","LAC Transitions Team","5310","Client Allowances","15/03/2017"
"Wolverhampton City Council","http://opendatacommunities.org/id/metropolitan-district-council/wolverhampton","Virgin Trains","52.70","Strategic Asset Management - General","4112","Public Transport","15/03/2017"
"Wolverhampton City Council","http://opendatacommunities.org/id/metropolitan-district-council/wolverhampton","CURRYS S/S","49.99","Connexions Contract","5732","Equipment - Purchase","15/03/2017"
"Wolverhampton City Council","http://opendatacommunities.org/id/metropolitan-district-council/wolverhampton","Virgin Trains","18.80","Private Sector Housing","4112","Public Transport","15/03/2017"
"Wolverhampton City Council","http://opendatacommunities.org/id/metropolitan-district-council/wolverhampton","CT WOLVERHAMPTON","20.00","EIP Locality 1","8398","Financial Assistance In Exceptional Circ","15/03/2017"
"Wolverhampton City Council","http://opendatacommunities.org/id/metropolitan-district-council/wolverhampton","ARGOS RETAIL GROUP","174.12","EIP Locality 2","5310","Financial Assistance In Exceptional Circ","15/03/2017"
"Wolverhampton City Council","http://opendatacommunities.org/id/metropolitan-district-council/wolverhampton","LOYD BILSTON","20.00","EIP Locality 2","6011","Financial Assistance In Exceptional Circ","15/03/2017"
"Wolverhampton City Council","http://opendatacommunities.org/id/metropolitan-district-council/wolverhampton","TESCO STORES 5194","87.10","Towers Outdoor Education Centre","5411","Provisions (Not for resale)","15/03/2017"
"Wolverhampton City Council","http://opendatacommunities.org/id/metropolitan-district-council/wolverhampton","HSBC INVOICE FINAN","580.62","Towers Outdoor Education Centre","6012","Laundry Expenses","15/03/2017"
"Wolverhampton City Council","http://opendatacommunities.org/id/metropolitan-district-council/wolverhampton","SCREWFIX DIRECT","35.70","Technician","5211","Materials","15/03/2017"
"Wolverhampton City Council","http://opendatacommunities.org/id/metropolitan-district-council/wolverhampton","HIGHFIELD HOUSE HO","285.00","CIN/CP Social Work Unit - Area 3","7011","No Recourse to Public Funds","15/03/2017"
"Wolverhampton City Council","http://opendatacommunities.org/id/metropolitan-district-council/wolverhampton","ARGOS RETAIL GROUP","39.99","CIN/CP Social Work Unit - Area 6","5310","Equipment - Purchase","14/03/2017"
"Wolverhampton City Council","http://opendatacommunities.org/id/metropolitan-district-council/wolverhampton","W M MORRISONS.COM","101.80","Discretionary Fund","5411","Materials","14/03/2017"
"Wolverhampton City Council","http://opendatacommunities.org/id/metropolitan-district-council/wolverhampton","ARGOS RETAIL GROUP","199.98","LAC Transitions Team","5310","Client Allowances","14/03/2017"
"Wolverhampton City Council","http://opendatacommunities.org/id/metropolitan-district-council/wolverhampton","ARGOS RETAIL GROUP","131.65","LAC Transitions Team","5310","Client Allowances","14/03/2017"
"Wolverhampton City Council","http://opendatacommunities.org/id/metropolitan-district-council/wolverhampton","ARGOS LTD","19.99","Wolverhampton Indoor and Open Market","5310","Equipment - Purchase","14/03/2017"
"Wolverhampton City Council","http://opendatacommunities.org/id/metropolitan-district-council/wolverhampton","CT WOLVERHAMPTON","75.00","EIP Locality 1","8398","Financial Assistance In Exceptional Circ","14/03/2017"
"Wolverhampton City Council","http://opendatacommunities.org/id/metropolitan-district-council/wolverhampton","Trainline","57.73","Contemporary Gallery","4112","Public Transport","14/03/2017"
"Wolverhampton City Council","http://opendatacommunities.org/id/metropolitan-district-council/wolverhampton","Trainline","19.23","SEN Special Education Admin","4112","Public Transport","14/03/2017"
"Wolverhampton City Council","http://opendatacommunities.org/id/metropolitan-district-council/wolverhampton","Virgin Trains","7.60","Children & Young People Support Costs","4112","Public Transport","14/03/2017"
"Wolverhampton City Council","http://opendatacommunities.org/id/metropolitan-district-council/wolverhampton","WIX.COM","93.13","Technical Support","5817","Computing - Purchase of Software","14/03/2017"
"Wolverhampton City Council","http://opendatacommunities.org/id/metropolitan-district-council/wolverhampton","FSPRG.COM INFFUSE.COM","5.05","Technical Support","5734","Computing - Purchase of Software","14/03/2017"
"Wolverhampton City Council","http://opendatacommunities.org/id/metropolitan-district-council/wolverhampton","AMAZON.CO.UK","15.81","Global Budgets","5999","Books","14/03/2017"
"Wolverhampton City Council","http://opendatacommunities.org/id/metropolitan-district-council/wolverhampton","AMAZON UK RETAIL AMAZO","16.78","Global Budgets","5999","Books","14/03/2017"
"Wolverhampton City Council","http://opendatacommunities.org/id/metropolitan-district-council/wolverhampton","Amazon UK Marketplace","11.29","Global Budgets","5942","Books","14/03/2017"
"Wolverhampton City Council","http://opendatacommunities.org/id/metropolitan-district-council/wolverhampton","NATWEST BANK","100.00","Democratic Support","6011","Public Transport","14/03/2017"
"Wolverhampton City Council","http://opendatacommunities.org/id/metropolitan-district-council/wolverhampton","BRITISH STANDARDS","82.00","Environmental Health - Pub Prot - Gen","7399","Services - Fees and Charges","14/03/2017"
"Wolverhampton City Council","http://opendatacommunities.org/id/metropolitan-district-council/wolverhampton","WWW.LOCAL.GOV.UK","235.00","Strategic Director Place","7399","Equipment - Purchase","14/03/2017"
"Wolverhampton City Council","http://opendatacommunities.org/id/metropolitan-district-council/wolverhampton","BRITANNIA","140.00","The Little Civic","7011","Services - Professional Fees","14/03/2017"
"Wolverhampton City Council","http://opendatacommunities.org/id/metropolitan-district-council/wolverhampton","ARGOS RETAIL GROUP","45.83","Civic Halls Non Direct Management A/C","5310","Equipment - Purchase","14/03/2017"
"Wolverhampton City Council","http://opendatacommunities.org/id/metropolitan-district-council/wolverhampton","LEGO","80.88","Brick Wonders/Lego","5945","Marketing \ Non-staff advertising","14/03/2017"
"Wolverhampton City Council","http://opendatacommunities.org/id/metropolitan-district-council/wolverhampton","ROYAL BK OF SCOTLAND","250.00","Childrens with Disabilities Team","6011","No Recourse to Public Funds","14/03/2017"
"Wolverhampton City Council","http://opendatacommunities.org/id/metropolitan-district-council/wolverhampton","SAINSBURYS SACAT (2340","1.00","City Direct","5411","Provisions (Not for resale)","14/03/2017"
"Wolverhampton City Council","http://opendatacommunities.org/id/metropolitan-district-council/wolverhampton","ARGOS RETAIL GROUP","71.87","LAC Transitions Team","5310","Client Allowances","14/03/2017"
"Wolverhampton City Council","http://opendatacommunities.org/id/metropolitan-district-council/wolverhampton","Trainline","88.33","Youth Offending Team","4112","Public Transport","14/03/2017"
"Wolverhampton City Council","http://opendatacommunities.org/id/metropolitan-district-council/wolverhampton","LEGO","352.45","Civic Halls Non Direct Management A/C","5945","Marketing \ Non-staff advertising","14/03/2017"
"Wolverhampton City Council","http://opendatacommunities.org/id/metropolitan-district-council/wolverhampton","G & M HALE (SUNDRIES)","27.70","Discretionary Fund","5992","Materials","14/03/2017"
"Wolverhampton City Council","http://opendatacommunities.org/id/metropolitan-district-council/wolverhampton","G & M HALE LTD","69.40","Discretionary Fund","5992","Equipment - Purchase","14/03/2017"
"Wolverhampton City Council","http://opendatacommunities.org/id/metropolitan-district-council/wolverhampton","G & M HALE LTD","38.00","Discretionary Fund","5992","Materials","14/03/2017"
"Wolverhampton City Council","http://opendatacommunities.org/id/metropolitan-district-council/wolverhampton","G & M HALE LTD","37.10","Creative Studies Delivery Area","5992","Materials for resale","14/03/2017"
"Wolverhampton City Council","http://opendatacommunities.org/id/metropolitan-district-council/wolverhampton","Trainline","228.99","Adoption and Residence Team & Allowances","4112","Public Transport","14/03/2017"
"Wolverhampton City Council","http://opendatacommunities.org/id/metropolitan-district-council/wolverhampton","BME TRAVEL","80.00","International Trade","4121","Client Transport","14/03/2017"
"Wolverhampton City Council","http://opendatacommunities.org/id/metropolitan-district-council/wolverhampton","Amazon UK Marketplace","11.98","Strategic ICTS (ICT Serv Budget)","5942","Computing - Purchase of Hardware","14/03/2017"
"Wolverhampton City Council","http://opendatacommunities.org/id/metropolitan-district-council/wolverhampton","Trainline","22.49","Intensive Family Support Team","4112","Public Transport","14/03/2017"
"Wolverhampton City Council","http://opendatacommunities.org/id/metropolitan-district-council/wolverhampton","Virgin Trains","131.00","Quality Assurance & Policies","4112","Conference Expenses","14/03/2017"
"Wolverhampton City Council","http://opendatacommunities.org/id/metropolitan-district-council/wolverhampton","INSPIRE HIRE","143.17","Quality Assurance & Policies","5021","Furniture","14/03/2017"
"Wolverhampton City Council","http://opendatacommunities.org/id/metropolitan-district-council/wolverhampton","INSPIRE HIRE","200.00","Mental Health Management","5021","Furniture","14/03/2017"
"Wolverhampton City Council","http://opendatacommunities.org/id/metropolitan-district-council/wolverhampton","TESCO - Seller_IST_1_2","239.99","EIP Locality 1","5999","Financial Assistance In Exceptional Circ","13/03/2017"
"Wolverhampton City Council","http://opendatacommunities.org/id/metropolitan-district-council/wolverhampton","Amazon UK Marketplace","20.51","EIP Locality 1","5942","Equipment - Purchase","13/03/2017"
"Wolverhampton City Council","http://opendatacommunities.org/id/metropolitan-district-council/wolverhampton","Amazon UK Marketplace","85.12","EIP Locality 1","5942","Equipment - Purchase","13/03/2017"
"Wolverhampton City Council","http://opendatacommunities.org/id/metropolitan-district-council/wolverhampton","Amazon UK Marketplace","3.07","EIP Locality 1","5942","Materials","13/03/2017"
"Wolverhampton City Council","http://opendatacommunities.org/id/metropolitan-district-council/wolverhampton","Amazon UK Marketplace","2.99","EIP Locality 1","5942","Materials","13/03/2017"
"Wolverhampton City Council","http://opendatacommunities.org/id/metropolitan-district-council/wolverhampton","LOYD MORR BILSTON","40.00","EIP Locality 2","6011","Financial Assistance In Exceptional Circ","13/03/2017"
"Wolverhampton City Council","http://opendatacommunities.org/id/metropolitan-district-council/wolverhampton","WILKO.COM","14.58","MASH","5722","Stationery","13/03/2017"
"Wolverhampton City Council","http://opendatacommunities.org/id/metropolitan-district-council/wolverhampton","AMAZON UK RETAIL AMAZO","79.61","Black Art Movement","5999","Books","13/03/2017"
"Wolverhampton City Council","http://opendatacommunities.org/id/metropolitan-district-council/wolverhampton","AMAZON UK RETAIL AMAZO","27.98","Black Art Movement","5999","Books","13/03/2017"
"Wolverhampton City Council","http://opendatacommunities.org/id/metropolitan-district-council/wolverhampton","Amazon UK Marketplace","3.84","Black Art Movement","5942","Books","13/03/2017"
"Wolverhampton City Council","http://opendatacommunities.org/id/metropolitan-district-council/wolverhampton","Virgin Trains","206.00","Adoption and Residence Team & Allowances","4112","Public Transport","13/03/2017"
"Wolverhampton City Council","http://opendatacommunities.org/id/metropolitan-district-council/wolverhampton","WWW.STAPLES.CO.UK","96.45","Towers Outdoor Education Centre","5943","Stationery","13/03/2017"
"Wolverhampton City Council","http://opendatacommunities.org/id/metropolitan-district-council/wolverhampton","WILKO RETAIL LIMIT","58.33","Blakenhall Commty & Healthy Living Ctr","5722","Equipment - Purchase","13/03/2017"
"Wolverhampton City Council","http://opendatacommunities.org/id/metropolitan-district-council/wolverhampton","123 REG R/T","15.98","Technical Support","5968","Subscriptions","13/03/2017"
"Wolverhampton City Council","http://opendatacommunities.org/id/metropolitan-district-council/wolverhampton","Amazon UK Marketplace","2.81","Global Budgets","5942","Books","13/03/2017"
"Wolverhampton City Council","http://opendatacommunities.org/id/metropolitan-district-council/wolverhampton","HERON FOODS LTD","2.53","Mayoral Expenses","5499","Hospitality","13/03/2017"
"Wolverhampton City Council","http://opendatacommunities.org/id/metropolitan-district-council/wolverhampton","Trainline","117.81","CIN/CP Social Work Unit - Area 8","4112","Public Transport","13/03/2017"
"Wolverhampton City Council","http://opendatacommunities.org/id/metropolitan-district-council/wolverhampton","ASDA HOME SHOPPING","-0.50","EIP Locality 5","5411","Financial Assistance In Exceptional Circ","13/03/2017"
"Wolverhampton City Council","http://opendatacommunities.org/id/metropolitan-district-council/wolverhampton","ASDA HOME SHOPPING","57.15","EIP Locality 5","5411","Financial Assistance In Exceptional Circ","13/03/2017"
"Wolverhampton City Council","http://opendatacommunities.org/id/metropolitan-district-council/wolverhampton","GCL760R","19.32","Delivery & OCE Development","7011","Catering","13/03/2017"
"Wolverhampton City Council","http://opendatacommunities.org/id/metropolitan-district-council/wolverhampton","OFFICIALRECORDCOUK","13.32","LAC Transitions Team","7392","Client Allowances","13/03/2017"
"Wolverhampton City Council","http://opendatacommunities.org/id/metropolitan-district-council/wolverhampton","AMAZON UK RETAIL AMAZO","25.73","EIP Locality 7","5999","Equipment - Purchase","13/03/2017"
"Wolverhampton City Council","http://opendatacommunities.org/id/metropolitan-district-council/wolverhampton","BLITZ RECYCLING LTD","258.00","EIP Locality 7","7394","Equipment - Purchase","13/03/2017"
"Wolverhampton City Council","http://opendatacommunities.org/id/metropolitan-district-council/wolverhampton","PAYPAL  TOTUSOFT","21.27","Strategic ICTS (ICT Serv Budget)","5734","Computing - Purchase of Software","13/03/2017"
"Wolverhampton City Council","http://opendatacommunities.org/id/metropolitan-district-council/wolverhampton","GOOGLE  42Gears","35.23","Strategic ICTS (ICT Serv Budget)","5734","Computing - Purchase of Software","13/03/2017"
"Wolverhampton City Council","http://opendatacommunities.org/id/metropolitan-district-council/wolverhampton","Amazon Prime","7.99","Strategic ICTS (ICT Serv Budget)","5968","Subscriptions","13/03/2017"
"Wolverhampton City Council","http://opendatacommunities.org/id/metropolitan-district-council/wolverhampton","WWWBHANGRABLAZECOM","20.00","WV Active Business Support","7997","Training Expenses","13/03/2017"
"Wolverhampton City Council","http://opendatacommunities.org/id/metropolitan-district-council/wolverhampton","ASDA HOME SHOPPING","-0.86","Upper Pendeford Farm Childrens Home","5411","Provisions (Not for resale)","13/03/2017"
"Wolverhampton City Council","http://opendatacommunities.org/id/metropolitan-district-council/wolverhampton","ASDA HOME SHOPPING","229.25","Upper Pendeford Farm Childrens Home","5411","Provisions (Not for resale)","13/03/2017"
"Wolverhampton City Council","http://opendatacommunities.org/id/metropolitan-district-council/wolverhampton","WWW.UKPLC.CO.UK","47.49","Electoral Registration","1520","Cleaning Supplies and Materials","13/03/2017"
"Wolverhampton City Council","http://opendatacommunities.org/id/metropolitan-district-council/wolverhampton","THE RANGE","55.62","LAC Transitions Team","5311","Client Allowances","13/03/2017"
"Wolverhampton City Council","http://opendatacommunities.org/id/metropolitan-district-council/wolverhampton","ARGOS LTD","91.66","LAC Transitions Team","5310","Client Allowances","13/03/2017"
"Wolverhampton City Council","http://opendatacommunities.org/id/metropolitan-district-council/wolverhampton","HUGHES","405.96","LAC Transitions Team","5732","Client Allowances","13/03/2017"
"Wolverhampton City Council","http://opendatacommunities.org/id/metropolitan-district-council/wolverhampton","HUGHES","140.83","LAC Transitions Team","5732","Independant Living Allowance","13/03/2017"
"Wolverhampton City Council","http://opendatacommunities.org/id/metropolitan-district-council/wolverhampton","WM MORRISON 024","200.00","CIN/CP S17 SW Unit - Area 2","5411","Provisions (Not for resale)","13/03/2017"
"Wolverhampton City Council","http://opendatacommunities.org/id/metropolitan-district-council/wolverhampton","WOLVERHAMPTON SELF STO","78.00","EIP Locality 8","4214","Grant Payments","13/03/2017"
"Wolverhampton City Council","http://opendatacommunities.org/id/metropolitan-district-council/wolverhampton","B&M RETAIL LTD","3.90","City Direct","5310","Equipment - Purchase","13/03/2017"
"Wolverhampton City Council","http://opendatacommunities.org/id/metropolitan-district-council/wolverhampton","POUNDWORLD RETAIL","4.17","City Direct","5310","Equipment - Purchase","13/03/2017"
"Wolverhampton City Council","http://opendatacommunities.org/id/metropolitan-district-council/wolverhampton","POUNDLAND LTD 1463","15.25","City Direct","5310","Equipment - Purchase","13/03/2017"
"Wolverhampton City Council","http://opendatacommunities.org/id/metropolitan-district-council/wolverhampton","VWO.com","49.98","City Direct","7399","Equipment - Purchase","13/03/2017"
"Wolverhampton City Council","http://opendatacommunities.org/id/metropolitan-district-council/wolverhampton","TVLICENSING.CO.UK","145.50","LAC Transitions Team","7392","Client Allowances","13/03/2017"
"Wolverhampton City Council","http://opendatacommunities.org/id/metropolitan-district-council/wolverhampton","Trainline","141.58","Public Health - Healthier Places Team","4112","Public Transport","13/03/2017"
"Wolverhampton City Council","http://opendatacommunities.org/id/metropolitan-district-council/wolverhampton","EASYJET","172.52","GEN Y City Transnational","3245","Public Transport","13/03/2017"
"Wolverhampton City Council","http://opendatacommunities.org/id/metropolitan-district-council/wolverhampton","PAYPAL  TOTUSOFT","84.20","Strategic ICTS (ICT Serv Budget)","5734","Computing - Purchase of Software","13/03/2017"
"Wolverhampton City Council","http://opendatacommunities.org/id/metropolitan-district-council/wolverhampton","POST OFFICE COUNTER","223.00","LAC Team","9402","Financial Assistance In Exceptional Circ","10/03/2017"
"Wolverhampton City Council","http://opendatacommunities.org/id/metropolitan-district-council/wolverhampton","ROYAL CARPETS","125.00","LAC Transitions Team","5713","Client Allowances","10/03/2017"
"Wolverhampton City Council","http://opendatacommunities.org/id/metropolitan-district-council/wolverhampton","ASDA HOME SHOPPING","-0.04","Ernest Bold Court","5411","Provisions (Not for resale)","10/03/2017"
"Wolverhampton City Council","http://opendatacommunities.org/id/metropolitan-district-council/wolverhampton","ASDA HOME SHOPPING","91.93","Ernest Bold Court","5411","Provisions (Not for resale)","10/03/2017"
"Wolverhampton City Council","http://opendatacommunities.org/id/metropolitan-district-council/wolverhampton","Virgin Trains","173.30","Environmental Health - Pub Prot - Gen","4112","Services - Fees and Charges","10/03/2017"
"Wolverhampton City Council","http://opendatacommunities.org/id/metropolitan-district-council/wolverhampton","LONDON MIDLAND TIC","200.00","SEN Early Years Team","4112","Public Transport","10/03/2017"
"Wolverhampton City Council","http://opendatacommunities.org/id/metropolitan-district-council/wolverhampton","AMAZON UK RETAIL AMAZO","16.11","Street Cleansing Overheads","5999","Materials","10/03/2017"
"Wolverhampton City Council","http://opendatacommunities.org/id/metropolitan-district-council/wolverhampton","Amazon UK Marketplace","4.52","Pendeford Nature Reserve","5942","Materials","10/03/2017"
"Wolverhampton City Council","http://opendatacommunities.org/id/metropolitan-district-council/wolverhampton","GCL760R","538.00","Members Expenses","7011","Subsistence","10/03/2017"
"Wolverhampton City Council","http://opendatacommunities.org/id/metropolitan-district-council/wolverhampton","WEST COAST TRAINS LTD","12.33","Delivery & OCE Development","5441","Catering","10/03/2017"
"Wolverhampton City Council","http://opendatacommunities.org/id/metropolitan-district-council/wolverhampton","Akzonobel","189.19","Art Gallery","5198","Materials","10/03/2017"
"Wolverhampton City Council","http://opendatacommunities.org/id/metropolitan-district-council/wolverhampton","WAITROSE 696","17.76","Mayoral Expenses","5411","Provisions (Not for resale)","10/03/2017"
"Wolverhampton City Council","http://opendatacommunities.org/id/metropolitan-district-council/wolverhampton","NETWORK WEST MIDLANDS","8.50","IMPACT","9399","Financial Assistance In Exceptional Circ","10/03/2017"
"Wolverhampton City Council","http://opendatacommunities.org/id/metropolitan-district-council/wolverhampton","THE POST OFFICE","238.00","IMPACT","9402","Comms - Postage","10/03/2017"
"Wolverhampton City Council","http://opendatacommunities.org/id/metropolitan-district-council/wolverhampton","EBUYER (UK) LTD","1174.90","Strategic ICTS (ICT Serv Budget)","5722","Computing - Purchase of Hardware","10/03/2017"
"Wolverhampton City Council","http://opendatacommunities.org/id/metropolitan-district-council/wolverhampton","SHROPSHIRE COUNCIL","16.50","CIN/CP S17 SW Unit - Area 2","8220","Training Expenses","10/03/2017"
"Wolverhampton City Council","http://opendatacommunities.org/id/metropolitan-district-council/wolverhampton","TIPPERS WOLVERHAMPTON","18.77","Bilston Town Hall","5072","Equipment - Purchase","10/03/2017"
"Wolverhampton City Council","http://opendatacommunities.org/id/metropolitan-district-council/wolverhampton","CARVER/WOLVERHAMPTON/L","14.59","Wholesale Market Facilities Management","5211","Cleaning Supplies and Materials","10/03/2017"
"Wolverhampton City Council","http://opendatacommunities.org/id/metropolitan-district-council/wolverhampton","Amazon UK Marketplace","2.44","EIP Locality 1","5942","Materials","10/03/2017"
"Wolverhampton City Council","http://opendatacommunities.org/id/metropolitan-district-council/wolverhampton","123 REG R/T","15.98","Technical Support","5968","Subscriptions","10/03/2017"
"Wolverhampton City Council","http://opendatacommunities.org/id/metropolitan-district-council/wolverhampton","Wix.com","279.39","Technical Support","5817","Computing - Purchase of Software","10/03/2017"
"Wolverhampton City Council","http://opendatacommunities.org/id/metropolitan-district-council/wolverhampton","GRO HM PASSPORT OFFICE","-23.40","LAC Team","9399","Financial Assistance In Exceptional Circ","10/03/2017"
"Wolverhampton City Council","http://opendatacommunities.org/id/metropolitan-district-council/wolverhampton","HM PASSPORT OFFICE","46.00","LAC Team","9399","Financial Assistance In Exceptional Circ","10/03/2017"
"Wolverhampton City Council","http://opendatacommunities.org/id/metropolitan-district-council/wolverhampton","HALFORDS 0448","37.61","Mayoral Expenses","5940","Materials","10/03/2017"
"Wolverhampton City Council","http://opendatacommunities.org/id/metropolitan-district-council/wolverhampton","POST OFFICE COUNTER","38.40","Towers Outdoor Education Centre","9402","Comms - Postage","09/03/2017"
"Wolverhampton City Council","http://opendatacommunities.org/id/metropolitan-district-council/wolverhampton","CENTRO","425.00","IMPACT","9399","Client Transport","09/03/2017"
"Wolverhampton City Council","http://opendatacommunities.org/id/metropolitan-district-council/wolverhampton","CENTRO","330.00","IMPACT","9399","Client Transport","09/03/2017"
"Wolverhampton City Council","http://opendatacommunities.org/id/metropolitan-district-council/wolverhampton","GRO HM PASSPORT OFFICE","23.40","LAC Team","9399","Financial Assistance In Exceptional Circ","09/03/2017"
"Wolverhampton City Council","http://opendatacommunities.org/id/metropolitan-district-council/wolverhampton","Trainline","84.71","Inclusion Support","4112","Public Transport","09/03/2017"
"Wolverhampton City Council","http://opendatacommunities.org/id/metropolitan-district-council/wolverhampton","Cross Country Trains","122.30","Strategic ICTS (ICT Serv Budget)","4112","Public Transport","09/03/2017"
"Wolverhampton City Council","http://opendatacommunities.org/id/metropolitan-district-council/wolverhampton","NYCOMM LTD","856.49","Strategic ICTS (ICT Serv Budget)","4812","Computing - Purchase of Hardware","09/03/2017"
"Wolverhampton City Council","http://opendatacommunities.org/id/metropolitan-district-council/wolverhampton","AMAZON UK RETAIL AMAZO","16.66","Strategic ICTS (ICT Serv Budget)","5999","Equipment - Purchase","09/03/2017"
"Wolverhampton City Council","http://opendatacommunities.org/id/metropolitan-district-council/wolverhampton","Amazon UK Marketplace","217.41","Strategic ICTS (ICT Serv Budget)","5942","Computing - Purchase of Hardware","09/03/2017"
"Wolverhampton City Council","http://opendatacommunities.org/id/metropolitan-district-council/wolverhampton","WWWSIGHTANDSOUND.CO.UK","492.50","Strategic ICTS (ICT Serv Budget)","5045","Computing - Purchase of Software","09/03/2017"
"Wolverhampton City Council","http://opendatacommunities.org/id/metropolitan-district-council/wolverhampton","WWW.MDNSUPPLIES.CO.UK","61.87","Delivery & OCE Development","5085","Equipment - Purchase","09/03/2017"
"Wolverhampton City Council","http://opendatacommunities.org/id/metropolitan-district-council/wolverhampton","SAFETYSHOP","255.14","Central Baths","5099","Equipment - Purchase","09/03/2017"
"Wolverhampton City Council","http://opendatacommunities.org/id/metropolitan-district-council/wolverhampton","POST OFFICE B DE C","285.71","Invest Black Country","6051","Subsistence","09/03/2017"
"Wolverhampton City Council","http://opendatacommunities.org/id/metropolitan-district-council/wolverhampton","WILKIN CHAPMAN","187.50","Central Training","8111","Training Expenses","09/03/2017"
"Wolverhampton City Council","http://opendatacommunities.org/id/metropolitan-district-council/wolverhampton","CHILD POVERTY","140.00","Central Training","8398","Training Expenses","09/03/2017"
"Wolverhampton City Council","http://opendatacommunities.org/id/metropolitan-district-council/wolverhampton","CORAM ACADEMY LTD","86.70","Fostering Team & Allowances","8398","Services - Supplies & Services to users","09/03/2017"
"Wolverhampton City Council","http://opendatacommunities.org/id/metropolitan-district-council/wolverhampton","E.ON ENERGY SOLUTIONS","139.11","CIN/CP S17 SW Unit - Area 5","4900","Electricity","09/03/2017"
"Wolverhampton City Council","http://opendatacommunities.org/id/metropolitan-district-council/wolverhampton","MMS RECOVERY LTD","153.75","Fleet Management","7549","Equipment - Purchase","09/03/2017"
"Wolverhampton City Council","http://opendatacommunities.org/id/metropolitan-district-council/wolverhampton","RENT ME NOW","300.00","CIN/CP S17 SW Unit - Area 8","8999","Services - Professional Fees","09/03/2017"
"Wolverhampton City Council","http://opendatacommunities.org/id/metropolitan-district-council/wolverhampton","LOYD MORR WILLENHALL","250.00","CIN/CP S17 SW Unit - Area 6","6011","Financial Assistance In Exceptional Circ","09/03/2017"
"Wolverhampton City Council","http://opendatacommunities.org/id/metropolitan-district-council/wolverhampton","MARRIOTT","55.83","Delivery & OCE Development","3509","Catering","09/03/2017"
"Wolverhampton City Council","http://opendatacommunities.org/id/metropolitan-district-council/wolverhampton","MARRIOTT","101.25","Delivery & OCE Development","3509","Catering","09/03/2017"
"Wolverhampton City Council","http://opendatacommunities.org/id/metropolitan-district-council/wolverhampton","E01510300000000","100.00","Delivery & OCE Development","6011","Financial Assistance In Exceptional Circ","09/03/2017"
"Wolverhampton City Council","http://opendatacommunities.org/id/metropolitan-district-council/wolverhampton","WCT CATERING","16.08","Delivery & OCE Development","4112","Public Transport","09/03/2017"
"Wolverhampton City Council","http://opendatacommunities.org/id/metropolitan-district-council/wolverhampton","CAREFORTHEFAMILY.O","270.00","EIP Locality 7","8398","Equipment - Purchase","09/03/2017"
"Wolverhampton City Council","http://opendatacommunities.org/id/metropolitan-district-council/wolverhampton","HSBC CASH MACHINE","300.00","Headstart Phase 3","6011","Educ Trips, Holidays, Outings, Activity","09/03/2017"
"Wolverhampton City Council","http://opendatacommunities.org/id/metropolitan-district-council/wolverhampton","ARGOS RETAIL GROUP","141.94","CIN/CP S17 SW Unit - Area 3","5310","Furniture","09/03/2017"
"Wolverhampton City Council","http://opendatacommunities.org/id/metropolitan-district-council/wolverhampton","Amazon UK Marketplace","6.79","Archives","5942","Books","09/03/2017"
"Wolverhampton City Council","http://opendatacommunities.org/id/metropolitan-district-council/wolverhampton","CUMMINGS BROTHERS LOCK","9.17","Caretakers Community Centre","7399","R&M - Departmental planned (external)","09/03/2017"
"Wolverhampton City Council","http://opendatacommunities.org/id/metropolitan-district-council/wolverhampton","CUMMINGS BROTHERS LOCK","15.00","Statutory Services (10RM)","7399","R&M - Departmental planned (external)","09/03/2017"
"Wolverhampton City Council","http://opendatacommunities.org/id/metropolitan-district-council/wolverhampton","BRITANNIA","37.00","CIN/CP S17 SW Unit - Area 2","7011","Services - Supplies & Services to users","09/03/2017"
"Wolverhampton City Council","http://opendatacommunities.org/id/metropolitan-district-council/wolverhampton","Trainline","83.84","CIN/CP S17 SW Unit - Area 2","4112","Public Transport","09/03/2017"
"Wolverhampton City Council","http://opendatacommunities.org/id/metropolitan-district-council/wolverhampton","MAX SPIELMANN LTD","67.87","Private Sector Housing","7221","Publications","09/03/2017"
"Wolverhampton City Council","http://opendatacommunities.org/id/metropolitan-district-council/wolverhampton","Amazon UK Marketplace","7.99","EIP Locality 1","5942","Stationery","09/03/2017"
"Wolverhampton City Council","http://opendatacommunities.org/id/metropolitan-district-council/wolverhampton","LOYD BILSTON","40.00","EIP Locality 2","6011","Financial Assistance In Exceptional Circ","09/03/2017"
"Wolverhampton City Council","http://opendatacommunities.org/id/metropolitan-district-council/wolverhampton","B&M RETAIL","21.05","LAC Transitions Team","5310","Client Allowances","09/03/2017"
"Wolverhampton City Council","http://opendatacommunities.org/id/metropolitan-district-council/wolverhampton","TESCO STORES 5194","-1.00","Towers Outdoor Education Centre","5411","Provisions (Not for resale)","09/03/2017"
"Wolverhampton City Council","http://opendatacommunities.org/id/metropolitan-district-council/wolverhampton","Trainline","199.41","Adoption and Residence Team & Allowances","4112","Public Transport","08/03/2017"
"Wolverhampton City Council","http://opendatacommunities.org/id/metropolitan-district-council/wolverhampton","TALBOTS LAW LTD","255.00","CIN/CP S17 SW Unit - Area 6","8111","Services - Professional Fees","08/03/2017"
"Wolverhampton City Council","http://opendatacommunities.org/id/metropolitan-district-council/wolverhampton","HIGHFIELD HOUSE HO","285.00","CIN/CP Social Work Unit - Area 3","7011","No Recourse to Public Funds","08/03/2017"
"Wolverhampton City Council","http://opendatacommunities.org/id/metropolitan-district-council/wolverhampton","APPLEGREEN","71.97","Mayoral Expenses","5541","Petrol","08/03/2017"
"Wolverhampton City Council","http://opendatacommunities.org/id/metropolitan-district-council/wolverhampton","ASDA SUPERSTORE","1.98","Mayoral Expenses","5411","Hospitality","08/03/2017"
"Wolverhampton City Council","http://opendatacommunities.org/id/metropolitan-district-council/wolverhampton","UNTOUCHABLES","13.00","Education Catering - General Overheads","5231","Materials","08/03/2017"
"Wolverhampton City Council","http://opendatacommunities.org/id/metropolitan-district-council/wolverhampton","REGISTRARS OFFICE","120.00","Head of Service - CINCP","8299","Services - Professional Fees","08/03/2017"
"Wolverhampton City Council","http://opendatacommunities.org/id/metropolitan-district-council/wolverhampton","WWW.SEVERNTRENTSEARCHE","470.00","Disposal Costs","4900","Services - Professional Fees","08/03/2017"
"Wolverhampton City Council","http://opendatacommunities.org/id/metropolitan-district-council/wolverhampton","G & M HALE (SUNDRIES)","14.50","Discretionary Fund","5992","Materials","08/03/2017"
"Wolverhampton City Council","http://opendatacommunities.org/id/metropolitan-district-council/wolverhampton","G & M HALE (SUNDRIES)","24.35","Creative Studies Delivery Area","5992","Materials for resale","08/03/2017"
"Wolverhampton City Council","http://opendatacommunities.org/id/metropolitan-district-council/wolverhampton","G & M HALE LTD","70.50","Discretionary Fund","5992","Materials","08/03/2017"
"Wolverhampton City Council","http://opendatacommunities.org/id/metropolitan-district-council/wolverhampton","G & M HALE LTD","130.50","Discretionary Fund","5992","Materials","08/03/2017"
"Wolverhampton City Council","http://opendatacommunities.org/id/metropolitan-district-council/wolverhampton","RYMAN","12.98","Headstart Phase 3","5943","Stationery","08/03/2017"
"Wolverhampton City Council","http://opendatacommunities.org/id/metropolitan-district-council/wolverhampton","WWW.DOMINOS.CO.UK","52.97","B-Safe","5812","Subsistence","08/03/2017"
"Wolverhampton City Council","http://opendatacommunities.org/id/metropolitan-district-council/wolverhampton","ARGOS LTD","14.04","Headstart Phase 3","5310","Equipment - Purchase","08/03/2017"
"Wolverhampton City Council","http://opendatacommunities.org/id/metropolitan-district-council/wolverhampton","Amazon UK Marketplace","42.29","Headstart Phase 3","5942","Computing - Consumables","08/03/2017"
"Wolverhampton City Council","http://opendatacommunities.org/id/metropolitan-district-council/wolverhampton","CUMMINGS BROTHERS LOCK","5.00","Public Conveniences","7399","Equipment - Purchase","08/03/2017"
"Wolverhampton City Council","http://opendatacommunities.org/id/metropolitan-district-council/wolverhampton","SCREWFIX WOLVERHAM","24.99","Public Conveniences","5211","Equipment - Purchase","08/03/2017"
"Wolverhampton City Council","http://opendatacommunities.org/id/metropolitan-district-council/wolverhampton","VUE ITCERTIFICATIONVUE","113.00","Strategic ICTS (ICT Serv Budget)","8299","Training Expenses","08/03/2017"
"Wolverhampton City Council","http://opendatacommunities.org/id/metropolitan-district-council/wolverhampton","Amazon UK Marketplace","77.94","Strategic ICTS (ICT Serv Budget)","5942","Computing - Purchase of Hardware","08/03/2017"
"Wolverhampton City Council","http://opendatacommunities.org/id/metropolitan-district-council/wolverhampton","Amazon UK Marketplace","370.00","Strategic ICTS (ICT Serv Budget)","5942","Computing - Purchase of Hardware","08/03/2017"
"Wolverhampton City Council","http://opendatacommunities.org/id/metropolitan-district-council/wolverhampton","MAPLIN WOLVERHAMPT WV2","244.95","Strategic ICTS (ICT Serv Budget)","4812","Computing - Purchase of Hardware","08/03/2017"
"Wolverhampton City Council","http://opendatacommunities.org/id/metropolitan-district-council/wolverhampton","Amazon UK Marketplace","5.25","Strategic ICTS (ICT Serv Budget)","5942","Computing - Purchase of Hardware","08/03/2017"
"Wolverhampton City Council","http://opendatacommunities.org/id/metropolitan-district-council/wolverhampton","Amazon UK Marketplace","19.56","Audit Services","5942","Equipment - R & M","08/03/2017"
"Wolverhampton City Council","http://opendatacommunities.org/id/metropolitan-district-council/wolverhampton","G & M HALE LTD","40.00","Creative Studies Delivery Area","5992","Materials for resale","08/03/2017"
"Wolverhampton City Council","http://opendatacommunities.org/id/metropolitan-district-council/wolverhampton","PARTRIDGE & PRINT","378.00","Fostering Team & Allowances","8299","Training Expenses","08/03/2017"
"Wolverhampton City Council","http://opendatacommunities.org/id/metropolitan-district-council/wolverhampton","AMAZON.CO.UK","10.03","Parks - Ranger Service","5999","Equipment - Purchase","08/03/2017"
"Wolverhampton City Council","http://opendatacommunities.org/id/metropolitan-district-council/wolverhampton","MEDIA & COMMUNICATIONS","954.00","Revenues","4812","Comms - Mobile Telephones","08/03/2017"
"Wolverhampton City Council","http://opendatacommunities.org/id/metropolitan-district-council/wolverhampton","SWIFT BUSINESS SOLUTIO","34.89","Revenues","5943","Stationery","08/03/2017"
"Wolverhampton City Council","http://opendatacommunities.org/id/metropolitan-district-council/wolverhampton","JACKSONS FENCING","168.48","Northicote Farm","1799","R&M - Departmental response (external)","08/03/2017"
"Wolverhampton City Council","http://opendatacommunities.org/id/metropolitan-district-council/wolverhampton","CANVA.COM","0.84","Communications & Marketing - General","7221","Publications","08/03/2017"
"Wolverhampton City Council","http://opendatacommunities.org/id/metropolitan-district-council/wolverhampton","GO CARZ","3.78","Public Health Support Costs","4121","Public Transport","08/03/2017"
"Wolverhampton City Council","http://opendatacommunities.org/id/metropolitan-district-council/wolverhampton","B&M RETAIL","45.81","LAC Transitions Team","5310","Client Allowances","08/03/2017"
"Wolverhampton City Council","http://opendatacommunities.org/id/metropolitan-district-council/wolverhampton","CENTRO HOUSE","433.50","Business Manager - Place","4112","Public Transport","08/03/2017"
"Wolverhampton City Council","http://opendatacommunities.org/id/metropolitan-district-council/wolverhampton","TESCO STORES 5194","186.04","Towers Outdoor Education Centre","5411","Provisions (Not for resale)","08/03/2017"
"Wolverhampton City Council","http://opendatacommunities.org/id/metropolitan-district-council/wolverhampton","WILKO RETAIL LIMIT","4.00","Children & Young People Support Costs","5722","Equipment - Purchase","08/03/2017"
"Wolverhampton City Council","http://opendatacommunities.org/id/metropolitan-district-council/wolverhampton","ANAPHYLAXIS CAMPAI","22.00","School Meals Statutory Standards","8398","Services - Professional Fees","08/03/2017"
"Wolverhampton City Council","http://opendatacommunities.org/id/metropolitan-district-council/wolverhampton","1&1 INTERNET LIMITED","11.10","Head Start (Digital Strand)","4816","Computing - Purchase of Software","08/03/2017"
"Wolverhampton City Council","http://opendatacommunities.org/id/metropolitan-district-council/wolverhampton","Amazon UK Marketplace","4.99","Learning Technologies","5942","Books","08/03/2017"
"Wolverhampton City Council","http://opendatacommunities.org/id/metropolitan-district-council/wolverhampton","HM PASSPORT OFFICE","46.00","LAC Team","9399","Financial Assistance In Exceptional Circ","08/03/2017"
"Wolverhampton City Council","http://opendatacommunities.org/id/metropolitan-district-council/wolverhampton","Trainline","67.42","Service Director Older People","4112","Public Transport","08/03/2017"
"Wolverhampton City Council","http://opendatacommunities.org/id/metropolitan-district-council/wolverhampton","REGISTRARS OFFICE","-20.00","Adoption and Residence Team & Allowances","8299","Services - Fees and Charges","08/03/2017"
"Wolverhampton City Council","http://opendatacommunities.org/id/metropolitan-district-council/wolverhampton","REGISTRARS OFFICE","20.00","Adoption and Residence Team & Allowances","8299","Services - Fees and Charges","08/03/2017"
"Wolverhampton City Council","http://opendatacommunities.org/id/metropolitan-district-council/wolverhampton","123 REG R/T","15.98","Technical Support","5968","Subscriptions","07/03/2017"
"Wolverhampton City Council","http://opendatacommunities.org/id/metropolitan-district-council/wolverhampton","WWW.FLUIDBRANDING.COM","339.15","Technical Support","5947","Equipment - Purchase","07/03/2017"
"Wolverhampton City Council","http://opendatacommunities.org/id/metropolitan-district-council/wolverhampton","Amazon UK Marketplace","318.46","Learning Technologies","5942","Books","07/03/2017"
"Wolverhampton City Council","http://opendatacommunities.org/id/metropolitan-district-council/wolverhampton","Virgintrains.co.uk","-120.00","LAC Team","4112","Public Transport","07/03/2017"
"Wolverhampton City Council","http://opendatacommunities.org/id/metropolitan-district-council/wolverhampton","HM PASSPORT OFFICE","46.00","LAC Team","9399","Financial Assistance In Exceptional Circ","07/03/2017"
"Wolverhampton City Council","http://opendatacommunities.org/id/metropolitan-district-council/wolverhampton","HEARTLANDS FURNITURE W","124.17","LAC Transitions Team","5712","Client Allowances","07/03/2017"
"Wolverhampton City Council","http://opendatacommunities.org/id/metropolitan-district-council/wolverhampton","ASDA HOME SHOPPING","-0.32","Ernest Bold Court","5411","Provisions (Not for resale)","07/03/2017"
"Wolverhampton City Council","http://opendatacommunities.org/id/metropolitan-district-council/wolverhampton","ASDA HOME SHOPPING","87.54","Ernest Bold Court","5411","Provisions (Not for resale)","07/03/2017"
"Wolverhampton City Council","http://opendatacommunities.org/id/metropolitan-district-council/wolverhampton","EB  FIT FOR THE FUTURE","169.29","Central Training","7399","Training Expenses","07/03/2017"
"Wolverhampton City Council","http://opendatacommunities.org/id/metropolitan-district-council/wolverhampton","THE COAL AUTHORITY","90.00","Disposal Costs","9399","Services - Professional Fees","07/03/2017"
"Wolverhampton City Council","http://opendatacommunities.org/id/metropolitan-district-council/wolverhampton","VANQUISH INTEGRATED PE","110.00","Ground Maintenance East","5734","Materials","07/03/2017"
"Wolverhampton City Council","http://opendatacommunities.org/id/metropolitan-district-council/wolverhampton","BRITANNIA","67.00","No Recourse to Public Funds - CIN/CP","7011","Accommodation Costs","07/03/2017"
"Wolverhampton City Council","http://opendatacommunities.org/id/metropolitan-district-council/wolverhampton","Virgin Trains","136.05","Strategic Director People","4112","Public Transport","07/03/2017"
"Wolverhampton City Council","http://opendatacommunities.org/id/metropolitan-district-council/wolverhampton","Virgin Trains","100.05","Strategic Director People","4112","Public Transport","07/03/2017"
"Wolverhampton City Council","http://opendatacommunities.org/id/metropolitan-district-council/wolverhampton","Virgin Trains","172.05","Strategic Director People","4112","Public Transport","07/03/2017"
"Wolverhampton City Council","http://opendatacommunities.org/id/metropolitan-district-council/wolverhampton","ASDA SUPERSTORE","15.00","EIP Locality 5","5411","Financial Assistance In Exceptional Circ","07/03/2017"
"Wolverhampton City Council","http://opendatacommunities.org/id/metropolitan-district-council/wolverhampton","LOYD MORR WALSALL","300.00","Headstart Phase 3","6011","Educ Trips, Holidays, Outings, Activity","07/03/2017"
"Wolverhampton City Council","http://opendatacommunities.org/id/metropolitan-district-council/wolverhampton","DISCLOSURE SCOT","25.00","CIN/CP S17 SW Unit - Area 3","9399","Services - Fees and Charges","07/03/2017"
"Wolverhampton City Council","http://opendatacommunities.org/id/metropolitan-district-council/wolverhampton","NETWORK WEST MIDLANDS","86.80","IMPACT","9399","Client Transport","07/03/2017"
"Wolverhampton City Council","http://opendatacommunities.org/id/metropolitan-district-council/wolverhampton","NEW LOOK 1817","29.19","IMPACT","5621","Clothing / Uniforms","07/03/2017"
"Wolverhampton City Council","http://opendatacommunities.org/id/metropolitan-district-council/wolverhampton","YOUNG`S SHOE REPAIRS L","8.85","Wolverhampton Indoor and Open Market","7251","Fixtures and Fittings - R&M","07/03/2017"
"Wolverhampton City Council","http://opendatacommunities.org/id/metropolitan-district-council/wolverhampton","POST OFFICE COUNTER","238.00","LAC Admin Team","9402","Comms - Postage","07/03/2017"
"Wolverhampton City Council","http://opendatacommunities.org/id/metropolitan-district-council/wolverhampton","LOYD BILSTON","50.00","EIP Locality 2","6011","Financial Assistance In Exceptional Circ","07/03/2017"
"Wolverhampton City Council","http://opendatacommunities.org/id/metropolitan-district-council/wolverhampton","BLOOMS MENSWEAR","74.99","Mayoral Expenses","5611","Clothing / Uniforms","07/03/2017"
"Wolverhampton City Council","http://opendatacommunities.org/id/metropolitan-district-council/wolverhampton","AMAZON UK RETAIL AMAZO","44.96","LAC Education Team (LACE)","5999","Equipment - Purchase","07/03/2017"
"Wolverhampton City Council","http://opendatacommunities.org/id/metropolitan-district-council/wolverhampton","Amazon EU","21.89","LAC Education Team (LACE)","5969","Equipment - Purchase","07/03/2017"
"Wolverhampton City Council","http://opendatacommunities.org/id/metropolitan-district-council/wolverhampton","Trainline","27.18","Service Director City Economy","4112","Public Transport","07/03/2017"
"Wolverhampton City Council","http://opendatacommunities.org/id/metropolitan-district-council/wolverhampton","Amazon UK Marketplace","74.93","Strategic ICTS (ICT Serv Budget)","5942","Computing - Purchase of Hardware","07/03/2017"
"Wolverhampton City Council","http://opendatacommunities.org/id/metropolitan-district-council/wolverhampton","OUTOFEDEN.CO.UK","32.28","Cleaning of Buildings - General","5722","Cleaning Supplies and Materials","07/03/2017"
"Wolverhampton City Council","http://opendatacommunities.org/id/metropolitan-district-council/wolverhampton","TVLICENSING.CO.UK","145.50","LAC Transitions Team","7392","Client Allowances","07/03/2017"
"Wolverhampton City Council","http://opendatacommunities.org/id/metropolitan-district-council/wolverhampton","MICROSOFT    STORE","66.66","Agresso System Support","5816","Computing - Purchase of Software","07/03/2017"
"Wolverhampton City Council","http://opendatacommunities.org/id/metropolitan-district-council/wolverhampton","LES MILLS FITNESS","62.50","WV Active Business Support","8220","Training Expenses","07/03/2017"
"Wolverhampton City Council","http://opendatacommunities.org/id/metropolitan-district-council/wolverhampton","W M MORRISONS.COM","84.11","Discretionary Fund","5411","Materials","07/03/2017"
"Wolverhampton City Council","http://opendatacommunities.org/id/metropolitan-district-council/wolverhampton","UNTOUCHABLES","3.00","Education Catering - General Overheads","5231","Materials","06/03/2017"
"Wolverhampton City Council","http://opendatacommunities.org/id/metropolitan-district-council/wolverhampton","ASDA HOME SHOPPING","-0.63","Upper Pendeford Farm Childrens Home","5411","Provisions (Not for resale)","06/03/2017"
"Wolverhampton City Council","http://opendatacommunities.org/id/metropolitan-district-council/wolverhampton","ASDA HOME SHOPPING","127.67","Upper Pendeford Farm Childrens Home","5411","Provisions (Not for resale)","06/03/2017"
"Wolverhampton City Council","http://opendatacommunities.org/id/metropolitan-district-council/wolverhampton","WWW.CATERING-APPLIANCE","643.20","Upper Pendeford Farm Childrens Home","5046","Equipment - Purchase","06/03/2017"
"Wolverhampton City Council","http://opendatacommunities.org/id/metropolitan-district-council/wolverhampton","G & M HALE LTD","74.75","Discretionary Fund","5992","Materials","06/03/2017"
"Wolverhampton City Council","http://opendatacommunities.org/id/metropolitan-district-council/wolverhampton","BRITANNIA","190.00","No Recourse to Public Funds - CIN/CP","7011","Accommodation Costs","06/03/2017"
"Wolverhampton City Council","http://opendatacommunities.org/id/metropolitan-district-council/wolverhampton","WWW.ICO.GOV.UK","35.00","Members Expenses","9399","Subscriptions","06/03/2017"
"Wolverhampton City Council","http://opendatacommunities.org/id/metropolitan-district-council/wolverhampton","WWW.ICO.GOV.UK","35.00","Members Expenses","9399","Subscriptions","06/03/2017"
"Wolverhampton City Council","http://opendatacommunities.org/id/metropolitan-district-council/wolverhampton","WWW.ICO.GOV.UK","35.00","Members Expenses","9399","Subscriptions","06/03/2017"
"Wolverhampton City Council","http://opendatacommunities.org/id/metropolitan-district-council/wolverhampton","ARGOS RETAIL GROUP","89.10","EIP Locality 6","5310","Equipment - Purchase","06/03/2017"
"Wolverhampton City Council","http://opendatacommunities.org/id/metropolitan-district-council/wolverhampton","WM MORRISONS","60.00","EIP Locality 6","5411","Provisions (Not for resale)","06/03/2017"
"Wolverhampton City Council","http://opendatacommunities.org/id/metropolitan-district-council/wolverhampton","Trainline","83.68","Headstart Phase 3","4112","Public Transport","06/03/2017"
"Wolverhampton City Council","http://opendatacommunities.org/id/metropolitan-district-council/wolverhampton","Trainline","255.38","Headstart Phase 3","4112","Public Transport","06/03/2017"
"Wolverhampton City Council","http://opendatacommunities.org/id/metropolitan-district-council/wolverhampton","Amazon UK Marketplace","267.05","Headstart Phase 3","5942","Equipment - Purchase","06/03/2017"
"Wolverhampton City Council","http://opendatacommunities.org/id/metropolitan-district-council/wolverhampton","Cross Country Trains","-0.02","Strategic ICTS (ICT Serv Budget)","4112","Public Transport","06/03/2017"
"Wolverhampton City Council","http://opendatacommunities.org/id/metropolitan-district-council/wolverhampton","DRI Claro Software Ltd","159.00","Strategic ICTS (ICT Serv Budget)","7372","Computing - Purchase of Software","06/03/2017"
"Wolverhampton City Council","http://opendatacommunities.org/id/metropolitan-district-council/wolverhampton","DRI Nuance","116.66","Strategic ICTS (ICT Serv Budget)","5734","Computing - Purchase of Software","06/03/2017"
"Wolverhampton City Council","http://opendatacommunities.org/id/metropolitan-district-council/wolverhampton","VUE ITCERTIFICATIONVUE","113.00","Strategic ICTS (ICT Serv Budget)","8299","Training Expenses","06/03/2017"
"Wolverhampton City Council","http://opendatacommunities.org/id/metropolitan-district-council/wolverhampton","TENABLE NETWORK SECURI","1347.90","Strategic ICTS (ICT Serv Budget)","5045","Subscriptions","06/03/2017"
"Wolverhampton City Council","http://opendatacommunities.org/id/metropolitan-district-council/wolverhampton","MAPLIN WOLVERHAMPT WV2","37.47","Strategic ICTS (ICT Serv Budget)","4812","Computing - Purchase of Hardware","06/03/2017"
"Wolverhampton City Council","http://opendatacommunities.org/id/metropolitan-district-council/wolverhampton","AMAZON UK RETAIL AMAZO","13.76","Strategic ICTS (ICT Serv Budget)","5999","Equipment - Purchase","06/03/2017"
"Wolverhampton City Council","http://opendatacommunities.org/id/metropolitan-district-council/wolverhampton","SCREWFIX DIRECT","126.52","Caretakers Community Centre","5211","Materials","06/03/2017"
"Wolverhampton City Council","http://opendatacommunities.org/id/metropolitan-district-council/wolverhampton","ARGOS RETAIL GROUP","26.61","EIP Locality 6","5310","Equipment - Purchase","06/03/2017"
"Wolverhampton City Council","http://opendatacommunities.org/id/metropolitan-district-council/wolverhampton","EBUYER (UK) LTD","33.62","Strategic Financial Services","5722","Equipment - Purchase","06/03/2017"
"Wolverhampton City Council","http://opendatacommunities.org/id/metropolitan-district-council/wolverhampton","FACEBK 2VC7JCAAR2","187.45","Communications & Marketing - General","7311","Marketing \ Non-staff advertising","06/03/2017"
"Wolverhampton City Council","http://opendatacommunities.org/id/metropolitan-district-council/wolverhampton","ASDA SUPERSTORE","6.08","Discretionary Fund","5411","Materials","06/03/2017"
"Wolverhampton City Council","http://opendatacommunities.org/id/metropolitan-district-council/wolverhampton","ROYAL CARPETS","83.33","LAC Transitions Team","5713","Client Allowances","06/03/2017"
"Wolverhampton City Council","http://opendatacommunities.org/id/metropolitan-district-council/wolverhampton","CATELLANIS","100.00","Wolverhampton Indoor and Open Market","5812","Events","06/03/2017"
"Wolverhampton City Council","http://opendatacommunities.org/id/metropolitan-district-council/wolverhampton","Amazon EU","39.86","EIP Locality 1","5969","Equipment - Purchase","06/03/2017"
"Wolverhampton City Council","http://opendatacommunities.org/id/metropolitan-district-council/wolverhampton","LOYD MORR BILSTON","70.00","EIP Locality 2","6011","Financial Assistance In Exceptional Circ","06/03/2017"
"Wolverhampton City Council","http://opendatacommunities.org/id/metropolitan-district-council/wolverhampton","BOOKWHEN","9.00","Craftplay","7372","Computing - Purchase of Software","06/03/2017"
"Wolverhampton City Council","http://opendatacommunities.org/id/metropolitan-district-council/wolverhampton","ASDA HOME SHOPPING","-0.03","Ernest Bold Court","5411","Provisions (Not for resale)","06/03/2017"
"Wolverhampton City Council","http://opendatacommunities.org/id/metropolitan-district-council/wolverhampton","ASDA HOME SHOPPING","95.87","Ernest Bold Court","5411","Provisions (Not for resale)","06/03/2017"
"Wolverhampton City Council","http://opendatacommunities.org/id/metropolitan-district-council/wolverhampton","Trainline","68.85","Education Business Partnership","4112","Public Transport","06/03/2017"
"Wolverhampton City Council","http://opendatacommunities.org/id/metropolitan-district-council/wolverhampton","Trainline","7.91","Education Business Partnership","4112","Public Transport","06/03/2017"
"Wolverhampton City Council","http://opendatacommunities.org/id/metropolitan-district-council/wolverhampton","WICKES","6.07","Education Catering - General Overheads","5211","Materials","06/03/2017"
"Wolverhampton City Council","http://opendatacommunities.org/id/metropolitan-district-council/wolverhampton","PC WORLD ONLINE","269.00","LAC Transitions Team","5732","Client Allowances","03/03/2017"
"Wolverhampton City Council","http://opendatacommunities.org/id/metropolitan-district-council/wolverhampton","Trainline","51.25","Youth Offending Team","4112","Public Transport","03/03/2017"
"Wolverhampton City Council","http://opendatacommunities.org/id/metropolitan-district-council/wolverhampton","TVLICENSING.CO.UK","121.25","LAC Transitions Team","7392","Client Allowances","03/03/2017"
"Wolverhampton City Council","http://opendatacommunities.org/id/metropolitan-district-council/wolverhampton","Virgin Trains","7.60","Adoption and Residence Team & Allowances","4112","Public Transport","03/03/2017"
"Wolverhampton City Council","http://opendatacommunities.org/id/metropolitan-district-council/wolverhampton","AMAZON UK RETAIL AMAZO","39.17","Headstart Phase 3","5999","Equipment - Purchase","03/03/2017"
"Wolverhampton City Council","http://opendatacommunities.org/id/metropolitan-district-council/wolverhampton","Cross Country Trains","7.60","Strategic ICTS (ICT Serv Budget)","4112","Public Transport","03/03/2017"
"Wolverhampton City Council","http://opendatacommunities.org/id/metropolitan-district-council/wolverhampton","Amazon EU","4.15","Strategic ICTS (ICT Serv Budget)","5969","Computing - Purchase of Hardware","03/03/2017"
"Wolverhampton City Council","http://opendatacommunities.org/id/metropolitan-district-council/wolverhampton","CENTRO HOUSE","650.76","Delivery & OCE Development","4112","Public Transport","03/03/2017"
"Wolverhampton City Council","http://opendatacommunities.org/id/metropolitan-district-council/wolverhampton","Amazon Svcs Europe,SAR","85.99","Carers Support","5942","Equipment - Purchase","03/03/2017"
"Wolverhampton City Council","http://opendatacommunities.org/id/metropolitan-district-council/wolverhampton","WIX.COM","93.13","Technical Support","5968","Subscriptions","03/03/2017"
"Wolverhampton City Council","http://opendatacommunities.org/id/metropolitan-district-council/wolverhampton","Amazon UK Marketplace","13.98","Technical Support","5942","Books","03/03/2017"
"Wolverhampton City Council","http://opendatacommunities.org/id/metropolitan-district-council/wolverhampton","SJASUPLIES","106.26","Art Gallery","8398","First Aid Requisites","03/03/2017"
"Wolverhampton City Council","http://opendatacommunities.org/id/metropolitan-district-council/wolverhampton","WHATS ON MAGAZINES LTD","350.00","Visitor Economy - Development","7311","Marketing \ Non-staff advertising","03/03/2017"
"Wolverhampton City Council","http://opendatacommunities.org/id/metropolitan-district-council/wolverhampton","GOOGLE  SVCSAPPS_wolve","3.30","Civic Halls Non Direct Management A/C","5968","Subscriptions","03/03/2017"
"Wolverhampton City Council","http://opendatacommunities.org/id/metropolitan-district-council/wolverhampton","CT WOLVERHAMPTON","45.00","CIN/CP S17 SW Unit - Area 7","8398","Services - Supplies & Services to users","03/03/2017"
"Wolverhampton City Council","http://opendatacommunities.org/id/metropolitan-district-council/wolverhampton","MARKS&SPENCER PLC SACA","55.80","Mayoral Expenses","5411","Hospitality","03/03/2017"
"Wolverhampton City Council","http://opendatacommunities.org/id/metropolitan-district-council/wolverhampton","THE POST OFFICE","55.75","CIN/CP S17 SW Unit - Area 1","9402","Comms - Postage","03/03/2017"
"Wolverhampton City Council","http://opendatacommunities.org/id/metropolitan-district-council/wolverhampton","ARGOS RETAIL GROUP","74.99","CIN/CP S17 SW Unit - Area 6","5310","Equipment - Purchase","03/03/2017"
"Wolverhampton City Council","http://opendatacommunities.org/id/metropolitan-district-council/wolverhampton","GCL760R","2196.00","Delivery & OCE Development","7011","Services - Supplies & Services to users","03/03/2017"
"Wolverhampton City Council","http://opendatacommunities.org/id/metropolitan-district-council/wolverhampton","Amazon UK Marketplace","26.73","Expenditure","5942","Equipment - Purchase","03/03/2017"
"Wolverhampton City Council","http://opendatacommunities.org/id/metropolitan-district-council/wolverhampton","ARGOS LTD","179.16","LAC Transitions Team","5310","Client Allowances","03/03/2017"
"Wolverhampton City Council","http://opendatacommunities.org/id/metropolitan-district-council/wolverhampton","WOLVERHAMPTON CC","2.50","Headstart Phase 3","7523","Parking Fees","03/03/2017"
"Wolverhampton City Council","http://opendatacommunities.org/id/metropolitan-district-council/wolverhampton","ARGOS RETAIL GROUP","141.94","CIN/CP S17 SW Unit - Area 3","5310","Furniture","03/03/2017"
"Wolverhampton City Council","http://opendatacommunities.org/id/metropolitan-district-council/wolverhampton","Amazon UK Marketplace","154.13","EIP Locality 1","5942","Equipment - Purchase","03/03/2017"
"Wolverhampton City Council","http://opendatacommunities.org/id/metropolitan-district-council/wolverhampton","PP THEWAY YZ","5.00","EIP Locality 1","8398","Financial Assistance In Exceptional Circ","03/03/2017"
"Wolverhampton City Council","http://opendatacommunities.org/id/metropolitan-district-council/wolverhampton","WILKO.COM","-1.50","MASH","5722","Equipment - Purchase","03/03/2017"
"Wolverhampton City Council","http://opendatacommunities.org/id/metropolitan-district-council/wolverhampton","AMAZON UK RETAIL AMAZO","18.40","Towers Outdoor Education Centre","5999","Equipment - Purchase","03/03/2017"
"Wolverhampton City Council","http://opendatacommunities.org/id/metropolitan-district-council/wolverhampton","CARPET CENTRE LTD","485.00","CIN/CP S17 SW Unit - Area 3","5713","Equipment - Purchase","03/03/2017"
"Wolverhampton City Council","http://opendatacommunities.org/id/metropolitan-district-council/wolverhampton","T & A TRAILERS","66.00","Northicote Farm","5561","R&M - Departmental planned (external)","03/03/2017"
"Wolverhampton City Council","http://opendatacommunities.org/id/metropolitan-district-council/wolverhampton","Amazon UK Marketplace","11.65","CIN/CP S17 SW Unit - Area 2","5942","Books","02/03/2017"
"Wolverhampton City Council","http://opendatacommunities.org/id/metropolitan-district-council/wolverhampton","Trainline","83.84","CIN/CP S17 SW Unit - Area 2","4112","Public Transport","02/03/2017"
"Wolverhampton City Council","http://opendatacommunities.org/id/metropolitan-district-council/wolverhampton","WWW.SAFETYGLOVES.CO.UK","48.80","Hostels / Outreach","5999","Equipment - Purchase","02/03/2017"
"Wolverhampton City Council","http://opendatacommunities.org/id/metropolitan-district-council/wolverhampton","ARGOS LTD","24.99","EIP Locality 1","5310","Equipment - Purchase","02/03/2017"
"Wolverhampton City Council","http://opendatacommunities.org/id/metropolitan-district-council/wolverhampton","Amazon UK Marketplace","81.98","EIP Locality 1","5942","Equipment - Purchase","02/03/2017"
"Wolverhampton City Council","http://opendatacommunities.org/id/metropolitan-district-council/wolverhampton","LOYD BILSTON","550.00","EIP Locality 2","6011","Financial Assistance In Exceptional Circ","02/03/2017"
"Wolverhampton City Council","http://opendatacommunities.org/id/metropolitan-district-council/wolverhampton","WILKO.COM","100.00","Assessment Team (West)","5722","Equipment - Purchase","02/03/2017"
"Wolverhampton City Council","http://opendatacommunities.org/id/metropolitan-district-council/wolverhampton","TESCO STORES 5194","-2.00","Towers Outdoor Education Centre","5411","Provisions (Not for resale)","02/03/2017"
"Wolverhampton City Council","http://opendatacommunities.org/id/metropolitan-district-council/wolverhampton","IKEA ONLINE","35.42","Towers Outdoor Education Centre","5719","Equipment - Purchase","02/03/2017"
"Wolverhampton City Council","http://opendatacommunities.org/id/metropolitan-district-council/wolverhampton","WATERSTONES","100.00","Education Catering - General Overheads","5942","Books","02/03/2017"
"Wolverhampton City Council","http://opendatacommunities.org/id/metropolitan-district-council/wolverhampton","WATERSTONES","200.00","Education Catering - General Overheads","5942","Books","02/03/2017"
"Wolverhampton City Council","http://opendatacommunities.org/id/metropolitan-district-council/wolverhampton","Amazon UK Marketplace","134.97","Technical Support","5942","Books","02/03/2017"
"Wolverhampton City Council","http://opendatacommunities.org/id/metropolitan-district-council/wolverhampton","E.ON ENERGY SOLUTIONS","200.00","CIN/CP S17 SW Unit - Area 5","4900","Electricity","02/03/2017"
"Wolverhampton City Council","http://opendatacommunities.org/id/metropolitan-district-council/wolverhampton","WWW.MOTOR.ORG.UK","60.00","Fleet Management","5999","MOT & HGV Tests","02/03/2017"
"Wolverhampton City Council","http://opendatacommunities.org/id/metropolitan-district-council/wolverhampton","BARCLAYS BANK PLC","250.00","CIN/CP S17 SW Unit - Area 6","6011","Financial Assistance In Exceptional Circ","02/03/2017"
"Wolverhampton City Council","http://opendatacommunities.org/id/metropolitan-district-council/wolverhampton","WOLVERHAMPTON ART","5.40","Art Gallery","8299","Training Expenses","02/03/2017"
"Wolverhampton City Council","http://opendatacommunities.org/id/metropolitan-district-council/wolverhampton","BARCLAYS BANK PLC","70.00","Inclusion Support","6011","Catering","02/03/2017"
"Wolverhampton City Council","http://opendatacommunities.org/id/metropolitan-district-council/wolverhampton","UNITED CARPETS BEDS","100.00","CIN/CP S17 SW Unit - Area 5","5713","Financial Assistance In Exceptional Circ","02/03/2017"
"Wolverhampton City Council","http://opendatacommunities.org/id/metropolitan-district-council/wolverhampton","Amazon UK Marketplace","8.97","CIN/CP Social Work Unit - Area 5","5942","Equipment - Purchase","02/03/2017"
"Wolverhampton City Council","http://opendatacommunities.org/id/metropolitan-district-council/wolverhampton","ARGOS LTD","-2.50","Car Parks Operational Staff","5310","Equipment - Purchase","02/03/2017"
"Wolverhampton City Council","http://opendatacommunities.org/id/metropolitan-district-council/wolverhampton","SAINSBURYS SACAT (2340","55.35","Civic Centre Catering","5411","Provisions (Not for resale)","02/03/2017"
"Wolverhampton City Council","http://opendatacommunities.org/id/metropolitan-district-council/wolverhampton","BARCLAYS BANK PLC","50.00","Duke Street Bungalows","6011","Public Transport","02/03/2017"
"Wolverhampton City Council","http://opendatacommunities.org/id/metropolitan-district-council/wolverhampton","MBL SEMINARS","120.00","Central Training","8299","Training Expenses","02/03/2017"
"Wolverhampton City Council","http://opendatacommunities.org/id/metropolitan-district-council/wolverhampton","PAYPAL  LOCALINFORM","199.95","Information Management","8398","Training Expenses","02/03/2017"
"Wolverhampton City Council","http://opendatacommunities.org/id/metropolitan-district-council/wolverhampton","Trainline","77.21","Legal Services","4112","Public Transport","02/03/2017"
"Wolverhampton City Council","http://opendatacommunities.org/id/metropolitan-district-council/wolverhampton","NOTEMACHINE","160.00","Mental Health Assessment & Care Mgmt","6011","Financial Assistance In Exceptional Circ","02/03/2017"
"Wolverhampton City Council","http://opendatacommunities.org/id/metropolitan-district-council/wolverhampton","POST OFFICE COUNTER","224.00","Fostering Team & Allowances","9402","Comms - Postage","02/03/2017"
"Wolverhampton City Council","http://opendatacommunities.org/id/metropolitan-district-council/wolverhampton","VDU01 HOTEL","320.00","Assistant Director - Public Health","7011","Room Hire","02/03/2017"
"Wolverhampton City Council","http://opendatacommunities.org/id/metropolitan-district-council/wolverhampton","Cross Country Trains","194.32","Strategic ICTS (ICT Serv Budget)","4112","Public Transport","02/03/2017"
"Wolverhampton City Council","http://opendatacommunities.org/id/metropolitan-district-council/wolverhampton","Virgintrains.co.uk","-440.80","Delivery & OCE Development","4112","Public Transport","02/03/2017"
"Wolverhampton City Council","http://opendatacommunities.org/id/metropolitan-district-council/wolverhampton","Virgin Trains","446.80","Delivery & OCE Development","4112","Public Transport","02/03/2017"
"Wolverhampton City Council","http://opendatacommunities.org/id/metropolitan-district-council/wolverhampton","Virgin Trains","440.80","Delivery & OCE Development","4112","Public Transport","02/03/2017"
"Wolverhampton City Council","http://opendatacommunities.org/id/metropolitan-district-council/wolverhampton","WWW.SWIMMING.ORG","68.00","Central Baths","8699","Subscriptions","02/03/2017"
"Wolverhampton City Council","http://opendatacommunities.org/id/metropolitan-district-council/wolverhampton","WAYFAIR STORES LIM","181.51","EIP Locality 5","5965","Equipment - Purchase","02/03/2017"
"Wolverhampton City Council","http://opendatacommunities.org/id/metropolitan-district-council/wolverhampton","TABLE TABLE41024440","4.15","Headstart Phase 3","5812","Subsistence","02/03/2017"
"Wolverhampton City Council","http://opendatacommunities.org/id/metropolitan-district-council/wolverhampton","ARGOS LTD","15.99","Wolverhampton Indoor and Open Market","5310","Equipment - Purchase","02/03/2017"
"Wolverhampton City Council","http://opendatacommunities.org/id/metropolitan-district-council/wolverhampton","B & Q 1243","14.23","Learning Disabilities Management","5211","Equipment - R & M","01/03/2017"
"Wolverhampton City Council","http://opendatacommunities.org/id/metropolitan-district-council/wolverhampton","ARGOS LTD","245.81","LAC Transitions Team","5310","Client Allowances","01/03/2017"
"Wolverhampton City Council","http://opendatacommunities.org/id/metropolitan-district-council/wolverhampton","TV LICENSING","24.25","LAC Transitions Team","7392","Client Allowances","01/03/2017"
"Wolverhampton City Council","http://opendatacommunities.org/id/metropolitan-district-council/wolverhampton","CARESHOP","106.02","Specialist Support Service - North","5999","Equipment - Purchase","01/03/2017"
"Wolverhampton City Council","http://opendatacommunities.org/id/metropolitan-district-council/wolverhampton","FACEBK MGAPUAEE92","4.48","Civic Halls Non Direct Management A/C","7311","Marketing \ Non-staff advertising","01/03/2017"
"Wolverhampton City Council","http://opendatacommunities.org/id/metropolitan-district-council/wolverhampton","FACEBK LGAPUAEE92","343.08","Civic Halls Non Direct Management A/C","7311","Marketing \ Non-staff advertising","01/03/2017"
"Wolverhampton City Council","http://opendatacommunities.org/id/metropolitan-district-council/wolverhampton","WOLVERHAMPTON CITY COU","21.00","Contemporary Gallery","9399","Services - Fees and Charges","01/03/2017"
"Wolverhampton City Council","http://opendatacommunities.org/id/metropolitan-district-council/wolverhampton","CIEH LIMITED","-50.00","Central Training","8699","Training Expenses","01/03/2017"
"Wolverhampton City Council","http://opendatacommunities.org/id/metropolitan-district-council/wolverhampton","WEST COAST TRAINS","9.00","Road Safety","4112","Public Transport","01/03/2017"
"Wolverhampton City Council","http://opendatacommunities.org/id/metropolitan-district-council/wolverhampton","THE POST OFFICE","403.00","Macmillan Welfare Rights","9402","Comms - Postage","01/03/2017"
"Wolverhampton City Council","http://opendatacommunities.org/id/metropolitan-district-council/wolverhampton","REGISTRARS OFFICE","10.00","Legal Services","8299","Training Expenses","01/03/2017"
"Wolverhampton City Council","http://opendatacommunities.org/id/metropolitan-district-council/wolverhampton","L.D.H. PLANT LIMIT","27.56","Fleet Management","5039","Equipment - Purchase","01/03/2017"
"Wolverhampton City Council","http://opendatacommunities.org/id/metropolitan-district-council/wolverhampton","NETWORK WEST MIDLANDS","54.50","IMPACT","9399","Financial Assistance In Exceptional Circ","01/03/2017"
"Wolverhampton City Council","http://opendatacommunities.org/id/metropolitan-district-council/wolverhampton","LOVE2SHOP.CO.UK","454.25","IMPACT","8641","Financial Assistance In Exceptional Circ","01/03/2017"
"Wolverhampton City Council","http://opendatacommunities.org/id/metropolitan-district-council/wolverhampton","ITUNES.COM/BILL","0.79","Strategic ICTS (ICT Serv Budget)","5735","Computing - Purchase of Software","01/03/2017"
"Wolverhampton City Council","http://opendatacommunities.org/id/metropolitan-district-council/wolverhampton","Virgin Trains","65.20","Corporate Procurement Unit","4112","Public Transport","01/03/2017"
"Wolverhampton City Council","http://opendatacommunities.org/id/metropolitan-district-council/wolverhampton","ADVANTIS CREDIT - MOTO","122.70","No Recourse to Public Funds - CIN/CP","7299","Services - Supplies & Services to users","01/03/2017"
"Wolverhampton City Council","http://opendatacommunities.org/id/metropolitan-district-council/wolverhampton","FACEBK 7CES7CWAR2","0.84","Communications & Marketing - General","7311","Marketing \ Non-staff advertising","01/03/2017"
"Wolverhampton City Council","http://opendatacommunities.org/id/metropolitan-district-council/wolverhampton","FACEBK QF5HNA2B82","17.36","Communications & Marketing - General","7311","Marketing \ Non-staff advertising","01/03/2017"
"Wolverhampton City Council","http://opendatacommunities.org/id/metropolitan-district-council/wolverhampton","FACEBK JF5HNA2B82","106.56","Communications & Marketing - General","7311","Marketing \ Non-staff advertising","01/03/2017"
"Wolverhampton City Council","http://opendatacommunities.org/id/metropolitan-district-council/wolverhampton","Trainline","57.73","LAC Transitions Team","4112","Client Transport","01/03/2017"
"Wolverhampton City Council","http://opendatacommunities.org/id/metropolitan-district-council/wolverhampton","WOLVERHAMPTON CC","5.42","Headstart Phase 3","7523","Parking Fees","01/03/2017"
"Wolverhampton City Council","http://opendatacommunities.org/id/metropolitan-district-council/wolverhampton","TRAINLINE","-70.70","CIN/CP S17 SW Unit - Area 2","4112","Public Transport","01/03/2017"
"Wolverhampton City Council","http://opendatacommunities.org/id/metropolitan-district-council/wolverhampton","POST OFFICE COUNTER","100.00","Housing Regeneration - Strategy & Dev","9402","Comms - Postage","01/03/2017"
"Wolverhampton City Council","http://opendatacommunities.org/id/metropolitan-district-council/wolverhampton","WEST COAST TRAINS","17.00","City Direct","4112","Public Transport","01/03/2017"
"Wolverhampton City Council","http://opendatacommunities.org/id/metropolitan-district-council/wolverhampton","WM MORRISONS","3.34","EIP Locality 6","5411","Provisions (Not for resale)","01/03/2017"
"Wolverhampton City Council","http://opendatacommunities.org/id/metropolitan-district-council/wolverhampton","PSU","24.00","Invest Black Country","8220","Training Expenses","01/03/2017"
"Wolverhampton City Council","http://opendatacommunities.org/id/metropolitan-district-council/wolverhampton","PSU","451.98","Invest Black Country","8220","Training Expenses","01/03/2017"
"Wolverhampton City Council","http://opendatacommunities.org/id/metropolitan-district-council/wolverhampton","RAINBOW","245.62","Headstart Phase 3","5021","Furniture","01/03/2017"
"Wolverhampton City Council","http://opendatacommunities.org/id/metropolitan-district-council/wolverhampton","HM PASSPORT OFFICE","46.00","LAC Team","9399","Services - Fees and Charges","01/03/2017"
"Wolverhampton City Council","http://opendatacommunities.org/id/metropolitan-district-council/wolverhampton","SCREWFIX","6.91","Technician","5211","Materials","01/03/2017"
"Wolverhampton City Council","http://opendatacommunities.org/id/metropolitan-district-council/wolverhampton","HIGHFIELD HOUSE HO","285.00","CIN/CP S17 SW Unit - Area 3","7011","Services - Supplies & Services to users","01/03/2017"
"Wolverhampton City Council","http://opendatacommunities.org/id/metropolitan-district-council/wolverhampton","Virgin Trains","66.30","Information Governance Team","4112","Public Transport","01/03/2017"
"Wolverhampton City Council","http://opendatacommunities.org/id/metropolitan-district-council/wolverhampton","Amazon UK Marketplace","18.83","EIP Locality 1","5942","Equipment - Purchase","01/03/2017"
"Wolverhampton City Council","http://opendatacommunities.org/id/metropolitan-district-council/wolverhampton","Amazon UK Marketplace","145.22","EIP Locality 1","5942","Equipment - Purchase","01/03/2017"
"Wolverhampton City Council","http://opendatacommunities.org/id/metropolitan-district-council/wolverhampton","LOYD BILSTON","220.00","EIP Locality 2","6011","Financial Assistance In Exceptional Circ","01/03/2017"
"Wolverhampton City Council","http://opendatacommunities.org/id/metropolitan-district-council/wolverhampton","DUNELM ONLINE ORDER","64.14","Learning Disabilities Management","5714","Services - Consultants","01/03/2017"
"Wolverhampton City Council","http://opendatacommunities.org/id/metropolitan-district-council/wolverhampton","TESCO STORES 5194","247.13","Towers Outdoor Education Centre","5411","Provisions (Not for resale)","01/03/2017"
"Wolverhampton City Council","http://opendatacommunities.org/id/metropolitan-district-council/wolverhampton","WWW.STAPLES.CO.UK","87.63","Towers Outdoor Education Centre","5943","Stationery","01/03/2017"
"Wolverhampton City Council","http://opendatacommunities.org/id/metropolitan-district-council/wolverhampton","O E METCALFE","473.09","Towers Outdoor Education Centre","5499","Catering","01/03/2017"
"Wolverhampton City Council","http://opendatacommunities.org/id/metropolitan-district-council/wolverhampton","SPAR SIOP TANDDERWEN","427.20","Towers Outdoor Education Centre","5411","Provisions (Not for resale)","01/03/2017"
"Wolverhampton City Council","http://opendatacommunities.org/id/metropolitan-district-council/wolverhampton","Amazon UK Marketplace","20.08","Towers Outdoor Education Centre","5942","Equipment - Hire","01/03/2017"
"Wolverhampton City Council","http://opendatacommunities.org/id/metropolitan-district-council/wolverhampton","ITUNES.COM/BILL","2.07","Learning Technologies","5735","Computing - Purchase of Software","01/03/2017"
"Wolverhampton City Council","http://opendatacommunities.org/id/metropolitan-district-council/wolverhampton","ARGOS RETAIL GROUP","32.45","EIP Locality 3","5310","Financial Assistance In Exceptional Circ","01/03/2017"
"Wolverhampton City Council","http://opendatacommunities.org/id/metropolitan-district-council/wolverhampton","ARGOS RETAIL GROUP","114.93","EIP Locality 3","5310","Financial Assistance In Exceptional Circ","01/03/2017"
